﻿Department Family,Entity,Date,Expense Type,Expense Area,Supplier,Transaction Number,AP Amount,Supplier Postcode
Department of Health,NHS Sheffield CCG,31/05/2022,Clinical&Medical-Independent Sector,ACUTE COMMISSIONING,BMI HEALTHCARE LTD,40835197,51688.33,SK3 0XN
Department of Health,NHS Sheffield CCG,31/05/2022,C&M-GMS Prem Other,PRC DELEGATED CO-COMMISSIONING,NHS ENGLAND,40835223,9609.2,WF3 1WE
Department of Health,NHS Sheffield CCG,31/05/2022,Contract- Refuse & Clinical Waste,PRC DELEGATED CO-COMMISSIONING,NHS ENGLAND,40835223,83088.81,WF3 1WE
Department of Health,NHS Sheffield CCG,31/05/2022,Clinical&Medical-Othe Public Sector,COMMUNITY SERVICES,SHEFFIELD CITY COUNCIL,40835242,150416.7,S1 1UJ
Department of Health,NHS Sheffield CCG,31/05/2022,Clinical&Medical-Othe Public Sector,MENTAL HEALTH SERVICES - COLLABORATIVE COMMISSIONING,SHEFFIELD CITY COUNCIL,40835242,83669.09,S1 1UJ
Department of Health,NHS Sheffield CCG,31/05/2022,Clinical&Medical-Othe Public Sector,REABLEMENT,SHEFFIELD CITY COUNCIL,40835242,21808.67,S1 1UJ
Department of Health,NHS Sheffield CCG,31/05/2022,Clinical&Medical-Othe Public Sector,SAFEGUARDING,SHEFFIELD CITY COUNCIL,40835242,16596.33,S1 1UJ
Department of Health,NHS Sheffield CCG,31/05/2022,Cont Care-Physical Disab (65+),CHC ADULT FULLY FUNDED,SHEFFIELD CITY COUNCIL,40835242,62356.82,S1 1UJ
Department of Health,NHS Sheffield CCG,31/05/2022,Soc Care-Joint H&C Teams/Working,INTERMEDIATE CARE,SHEFFIELD CITY COUNCIL,40835242,151447.58,S1 1UJ
Department of Health,NHS Sheffield CCG,31/05/2022,Soc Care-Other Soc Care,COMMISSIONING - NON ACUTE,SHEFFIELD CITY COUNCIL,40835242,1635250,S1 1UJ
Department of Health,NHS Sheffield CCG,31/05/2022,Soc Care-Support Prim Care,COMMUNITY SERVICES,SHEFFIELD CITY COUNCIL,40835242,64166.67,S1 1UJ
Department of Health,NHS Sheffield CCG,31/05/2022,Recharge : Received,PATIENT TRANSPORT,NHS DONCASTER CCG,40835261,135161.26,WF3 1WE
Department of Health,NHS Sheffield CCG,31/05/2022,C&M-WAF Expand extended hours,PRC DELEGATED CO-COMMISSIONING,PRIMARY CARE SHEFFIELD LTD,40835265,38190.88,S12 3GH
Department of Health,NHS Sheffield CCG,31/05/2022,C&M-APMS DES Immediate&1st Response,LOCAL ENHANCED SERVICES,PRIMARY CARE SHEFFIELD LTD,40835268,31447.25,S12 3GH
Department of Health,NHS Sheffield CCG,31/05/2022,Clinical&Medical-Independent Sector,MENTAL HEALTH SERVICES - OTHER,SOUTH YORKSHIRE HOUSING ASSOCIATION LTD,40835288,45911.52,S1 4EB
Department of Health,NHS Sheffield CCG,31/05/2022,C&M-WAF Expand extended hours,PRC DELEGATED CO-COMMISSIONING,PRIMARY CARE SHEFFIELD LTD,40835294,74178.99,S12 3GH
Department of Health,NHS Sheffield CCG,31/05/2022,Cont Care- Prior Year Payments,CHC ADULT FULLY FUNDED,SCARSDALE GRANGE NURSING HOME,40844773,-26029.15,S8 9EQ
Department of Health,NHS Sheffield CCG,31/05/2022,Cont Care- Prior Year Payments,CHC ADULT FULLY FUNDED,WILLOWBECK HEALTH CARE LTD,40844783,88574.33,S4 8AR
Department of Health,NHS Sheffield CCG,31/05/2022,Cont Care- Prior Year Payments,CHC ADULT FULLY FUNDED,HORIZON CARE HOMES LTD,40844839,147988.86,S25 3QA
Department of Health,NHS Sheffield CCG,31/05/2022,Clinical&Medical-Serv Recd-F Trsts,BEREAVEMENT SERVICE,ROTHERHAM NHS FOUNDATION TRUST,40848139,39200,S60 2UD
Department of Health,NHS Sheffield CCG,31/05/2022,Seconded-Basic Sal-Staff fm oth org,BEREAVEMENT SERVICE,ROTHERHAM NHS FOUNDATION TRUST,40848145,31032.96,S60 2UD
Department of Health,NHS Sheffield CCG,31/05/2022,Seconded-Employer's NHI Costs,BEREAVEMENT SERVICE,ROTHERHAM NHS FOUNDATION TRUST,40848145,3041.03,S60 2UD
Department of Health,NHS Sheffield CCG,31/05/2022,Clinical&Medical-Serv Recd-F Trsts,BEREAVEMENT SERVICE,ROTHERHAM NHS FOUNDATION TRUST,40848241,-39200,S60 2TY
Department of Health,NHS Sheffield CCG,31/05/2022,Cont Care- Adult 100% Fully Funded,CHC ADULT FULLY FUNDED,SOUTH YORKSHIRE HOUSING ASSOCIATION LTD,40858662,25500,S1 4HF
Department of Health,NHS Sheffield CCG,31/05/2022,Cont Care- Adult 100% Fully Funded,CHC ADULT FULLY FUNDED,SOUTH YORKSHIRE HOUSING ASSOCIATION LTD,40858663,46763.59,S1 4HF
Department of Health,NHS Sheffield CCG,31/05/2022,Clinical&Medical-Independent Sector,MENTAL HEALTH CONTRACTS,SUSASH GB LTD T/A EAGLE HOUSE,40858665,30091.75,S11 8NP
Department of Health,NHS Sheffield CCG,31/05/2022,Clinical&Medical-Independent Sector,MENTAL HEALTH CONTRACTS,SOUTH YORKSHIRE HOUSING ASSOCIATION LTD,40858666,34434.83,S1 4HF
Department of Health,NHS Sheffield CCG,31/05/2022,Cont Care-Physical Disab (65+),CHC ADULT FULLY FUNDED,BC SHEFFIELD LTD,40862155,42784.37,S9 2TJ
Department of Health,NHS Sheffield CCG,31/05/2022,Cont Care-Learning Disab(<65),CHC ADULT FULLY FUNDED,BESPOKE CARE AND SUPPORT LTD,40862332,34058.4,S73 0HQ
Department of Health,NHS Sheffield CCG,31/05/2022,Clinical&Medical-Independent Sector,NCAS/OATS,PSYCHIATRY UK LLP,40862374,33273.84,PL33 9ET
Department of Health,NHS Sheffield CCG,31/05/2022,Cont Care-Physical Disab (65+),CHC ADULT FULLY FUNDED,SHEFFIELD CITY COUNCIL,40873687,1071236.48,S1 1UJ
Department of Health,NHS Sheffield CCG,31/05/2022,Cont Care- Prior Year Payments,CHC ADULT FULLY FUNDED,SHEFFIELD CITY COUNCIL,40873697,-58410.59,S1 1UJ
Department of Health,NHS Sheffield CCG,31/05/2022,Cont Care- Children,CHC CHILDREN,SHEFFIELD CITY COUNCIL,40873701,135890.12,S1 1UJ
Department of Health,NHS Sheffield CCG,31/05/2022,Clinical&Medical-Serv Recd-F Trsts,BEREAVEMENT SERVICE,BARNSLEY HOSPITAL NHS FOUNDATION TRUST,40876510,75231,S75 2EP
Department of Health,NHS Sheffield CCG,31/05/2022,Clinical&Medical-Serv Recd-F Trsts,BEREAVEMENT SERVICE,SHEFFIELD TEACHING HOSPITALS NHS FOUNDATION TRUST,40876518,45753.41,S5 7AU
Department of Health,NHS Sheffield CCG,31/05/2022,Clinical&Medical-Commercial Sector,PATIENT TRANSPORT,PREMIER CARE DIRECT LTD,40876520,119684.1,DN4 5NU
Department of Health,NHS Sheffield CCG,31/05/2022,Clinical&Medical-Independent Sector,ACUTE COMMISSIONING,SPAMEDICA LTD,40876537,111340.67,BL1 1HU
Department of Health,NHS Sheffield CCG,31/05/2022,Cont Care-Physical Disab (65+),CHC ADULT FULLY FUNDED,ABBEYCARE NURSING,40876611,61085.81,S35 9YY
Department of Health,NHS Sheffield CCG,31/05/2022,C&M-GMS Global Sum,PRC DELEGATED CO-COMMISSIONING,BEAUCHIEF MEDICAL PRACTICE,40877489,75709.22,S8 0BJ
Department of Health,NHS Sheffield CCG,31/05/2022,C&M-PMS Contract Value,PRC DELEGATED CO-COMMISSIONING,WOODSEATS MEDICAL CENTRE,40894448,91461.87,S8 0SH
Department of Health,NHS Sheffield CCG,31/05/2022,C&M-PMS DES Learn Dsblty Hlth Chk,PRC DELEGATED CO-COMMISSIONING,WOODSEATS MEDICAL CENTRE,40894448,1820,S8 0SH
Department of Health,NHS Sheffield CCG,31/05/2022,C&M-PMS GP Statutory Levy,PRC DELEGATED CO-COMMISSIONING,WOODSEATS MEDICAL CENTRE,40894448,248.92,S8 0SH
Department of Health,NHS Sheffield CCG,31/05/2022,C&M-PMS LONG COVID ES,PRC DELEGATED CO-COMMISSIONING,WOODSEATS MEDICAL CENTRE,40894448,1332.75,S8 0SH
Department of Health,NHS Sheffield CCG,31/05/2022,C&M-PMS PCN DES Participation,PRC DELEGATED CO-COMMISSIONING,WOODSEATS MEDICAL CENTRE,40894448,3107.43,S8 0SH
Department of Health,NHS Sheffield CCG,31/05/2022,C&M-PMS Prem Notional Rent,PRC DELEGATED CO-COMMISSIONING,WOODSEATS MEDICAL CENTRE,40894448,11666.67,S8 0SH
Department of Health,NHS Sheffield CCG,31/05/2022,C&M-PMS Prem Rates,PRC DELEGATED CO-COMMISSIONING,WOODSEATS MEDICAL CENTRE,40894448,2611,S8 0SH
Department of Health,NHS Sheffield CCG,31/05/2022,C&M-PMS QOF Aspiration,PRC DELEGATED CO-COMMISSIONING,WOODSEATS MEDICAL CENTRE,40894448,10610.21,S8 0SH
Department of Health,NHS Sheffield CCG,31/05/2022,C&M-PMS WEIGHT MANAGEMENT SERVICE,PRC DELEGATED CO-COMMISSIONING,WOODSEATS MEDICAL CENTRE,40894448,126.5,S8 0SH
Department of Health,NHS Sheffield CCG,31/05/2022,C&M-PMS GP Statutory Levy,PRC DELEGATED CO-COMMISSIONING,PORTER BROOK MEDICAL CENTRE,40894905,-2089.3,S11 8HN
Department of Health,NHS Sheffield CCG,31/05/2022,C&M-PMS Out of Hours Opt Outs,PRC DELEGATED CO-COMMISSIONING,PORTER BROOK MEDICAL CENTRE,40894905,-8923.87,S11 8HN
Department of Health,NHS Sheffield CCG,31/05/2022,C&M-PMS GP Statutory Levy,PRC DELEGATED CO-COMMISSIONING,FORGE HEALTH GROUP,40894908,-1064.22,S3 9DL
Department of Health,NHS Sheffield CCG,31/05/2022,C&M-PMS Out of Hours Opt Outs,PRC DELEGATED CO-COMMISSIONING,FORGE HEALTH GROUP,40894908,-6295.1,S3 9DL
Department of Health,NHS Sheffield CCG,31/05/2022,C&M-PMS Contract Value,PRC DELEGATED CO-COMMISSIONING,BURNCROSS SURGERY,40894912,126754.13,S35 1RN
Department of Health,NHS Sheffield CCG,31/05/2022,C&M-PMS DES Learn Dsblty Hlth Chk,PRC DELEGATED CO-COMMISSIONING,BURNCROSS SURGERY,40894912,840,S35 1RN
Department of Health,NHS Sheffield CCG,31/05/2022,C&M-PMS GP Statutory Levy,PRC DELEGATED CO-COMMISSIONING,BURNCROSS SURGERY,40894912,532.11,S35 1RN
Department of Health,NHS Sheffield CCG,31/05/2022,C&M-PMS LONG COVID ES,PRC DELEGATED CO-COMMISSIONING,BURNCROSS SURGERY,40894912,1860,S35 1RN
Department of Health,NHS Sheffield CCG,31/05/2022,C&M-PMS PCN DES Participation,PRC DELEGATED CO-COMMISSIONING,BURNCROSS SURGERY,40894912,4510.03,S35 1RN
Department of Health,NHS Sheffield CCG,31/05/2022,C&M-PMS PCO Locum Sickness,PRC DELEGATED CO-COMMISSIONING,BURNCROSS SURGERY,40894912,8525.76,S35 1RN
Department of Health,NHS Sheffield CCG,31/05/2022,C&M-PMS PCO Other,PRC DELEGATED CO-COMMISSIONING,BURNCROSS SURGERY,40894912,8825,S35 1RN
Department of Health,NHS Sheffield CCG,31/05/2022,C&M-PMS Prem Notional Rent,PRC DELEGATED CO-COMMISSIONING,BURNCROSS SURGERY,40894912,15699.08,S35 1RN
Department of Health,NHS Sheffield CCG,31/05/2022,C&M-PMS Prem Rates,PRC DELEGATED CO-COMMISSIONING,BURNCROSS SURGERY,40894912,2021,S35 1RN
Department of Health,NHS Sheffield CCG,31/05/2022,C&M-PMS QOF Aspiration,PRC DELEGATED CO-COMMISSIONING,BURNCROSS SURGERY,40894912,15028.57,S35 1RN
Department of Health,NHS Sheffield CCG,31/05/2022,C&M-PMS WEIGHT MANAGEMENT SERVICE,PRC DELEGATED CO-COMMISSIONING,BURNCROSS SURGERY,40894912,230,S35 1RN
Department of Health,NHS Sheffield CCG,31/05/2022,C&M-PMS Contract Value,PRC DELEGATED CO-COMMISSIONING,BURNCROSS SURGERY,40894915,-1703.86,S35 1RN
Department of Health,NHS Sheffield CCG,31/05/2022,C&M-PMS GP Statutory Levy,PRC DELEGATED CO-COMMISSIONING,BURNCROSS SURGERY,40894915,-1019.56,S35 1RN
Department of Health,NHS Sheffield CCG,31/05/2022,C&M-PMS Contract Value,PRC DELEGATED CO-COMMISSIONING,MEADOWHEAD GROUP PRACTICE,40894916,166685.16,S8 7RL
Department of Health,NHS Sheffield CCG,31/05/2022,C&M-PMS DES Learn Dsblty Hlth Chk,PRC DELEGATED CO-COMMISSIONING,MEADOWHEAD GROUP PRACTICE,40894916,5040,S8 7RL
Department of Health,NHS Sheffield CCG,31/05/2022,C&M-PMS GP Statutory Levy,PRC DELEGATED CO-COMMISSIONING,MEADOWHEAD GROUP PRACTICE,40894916,207.06,S8 7RL
Department of Health,NHS Sheffield CCG,31/05/2022,C&M-PMS LONG COVID ES,PRC DELEGATED CO-COMMISSIONING,MEADOWHEAD GROUP PRACTICE,40894916,2299.08,S8 7RL
Department of Health,NHS Sheffield CCG,31/05/2022,C&M-PMS Out of Hours Opt Outs,PRC DELEGATED CO-COMMISSIONING,MEADOWHEAD GROUP PRACTICE,40894916,467.36,S8 7RL
Department of Health,NHS Sheffield CCG,31/05/2022,C&M-PMS PCN DES Participation,PRC DELEGATED CO-COMMISSIONING,MEADOWHEAD GROUP PRACTICE,40894916,5568.79,S8 7RL
Department of Health,NHS Sheffield CCG,31/05/2022,C&M-PMS Prem Healthcentre Rent,PRC DELEGATED CO-COMMISSIONING,MEADOWHEAD GROUP PRACTICE,40894916,41833.02,S8 7RL
Department of Health,NHS Sheffield CCG,31/05/2022,C&M-PMS Prem Notional Rent,PRC DELEGATED CO-COMMISSIONING,MEADOWHEAD GROUP PRACTICE,40894916,5666.67,S8 7RL
Department of Health,NHS Sheffield CCG,31/05/2022,C&M-PMS Prem Rates,PRC DELEGATED CO-COMMISSIONING,MEADOWHEAD GROUP PRACTICE,40894916,1600,S8 7RL
Department of Health,NHS Sheffield CCG,31/05/2022,C&M-PMS QOF Aspiration,PRC DELEGATED CO-COMMISSIONING,MEADOWHEAD GROUP PRACTICE,40894916,17750.73,S8 7RL
Department of Health,NHS Sheffield CCG,31/05/2022,C&M-PMS WEIGHT MANAGEMENT SERVICE,PRC DELEGATED CO-COMMISSIONING,MEADOWHEAD GROUP PRACTICE,40894916,230,S8 7RL
Department of Health,NHS Sheffield CCG,31/05/2022,C&M-PMS Contract Value,PRC DELEGATED CO-COMMISSIONING,MEADOWHEAD GROUP PRACTICE,40894919,-9839.12,S8 7RL
Department of Health,NHS Sheffield CCG,31/05/2022,C&M-PMS GP Statutory Levy,PRC DELEGATED CO-COMMISSIONING,MEADOWHEAD GROUP PRACTICE,40894919,-1319.3,S8 7RL
Department of Health,NHS Sheffield CCG,31/05/2022,C&M-PMS Out of Hours Opt Outs,PRC DELEGATED CO-COMMISSIONING,MEADOWHEAD GROUP PRACTICE,40894919,-7901.89,S8 7RL
Department of Health,NHS Sheffield CCG,31/05/2022,C&M-PMS Contract Value,PRC DELEGATED CO-COMMISSIONING,GLEADLESS MEDICAL CENTRE,40894921,70563.77,S14 1PQ
Department of Health,NHS Sheffield CCG,31/05/2022,C&M-PMS DES Learn Dsblty Hlth Chk,PRC DELEGATED CO-COMMISSIONING,GLEADLESS MEDICAL CENTRE,40894921,3500,S14 1PQ
Department of Health,NHS Sheffield CCG,31/05/2022,C&M-PMS GP Statutory Levy,PRC DELEGATED CO-COMMISSIONING,GLEADLESS MEDICAL CENTRE,40894921,509.78,S14 1PQ
Department of Health,NHS Sheffield CCG,31/05/2022,C&M-PMS LONG COVID ES,PRC DELEGATED CO-COMMISSIONING,GLEADLESS MEDICAL CENTRE,40894921,1099.76,S14 1PQ
Department of Health,NHS Sheffield CCG,31/05/2022,C&M-PMS Out of Hours Opt Outs,PRC DELEGATED CO-COMMISSIONING,GLEADLESS MEDICAL CENTRE,40894921,28,S14 1PQ
Department of Health,NHS Sheffield CCG,31/05/2022,C&M-PMS PCN DES Participation,PRC DELEGATED CO-COMMISSIONING,GLEADLESS MEDICAL CENTRE,40894921,2518.52,S14 1PQ
Department of Health,NHS Sheffield CCG,31/05/2022,C&M-PMS PCO Other,PRC DELEGATED CO-COMMISSIONING,GLEADLESS MEDICAL CENTRE,40894921,1091.6,S14 1PQ
Department of Health,NHS Sheffield CCG,31/05/2022,C&M-PMS Prem Notional Rent,PRC DELEGATED CO-COMMISSIONING,GLEADLESS MEDICAL CENTRE,40894921,6885.42,S14 1PQ
Department of Health,NHS Sheffield CCG,31/05/2022,C&M-PMS Prem Rates,PRC DELEGATED CO-COMMISSIONING,GLEADLESS MEDICAL CENTRE,40894921,1210,S14 1PQ
Department of Health,NHS Sheffield CCG,31/05/2022,C&M-PMS QOF Aspiration,PRC DELEGATED CO-COMMISSIONING,GLEADLESS MEDICAL CENTRE,40894921,7367.64,S14 1PQ
Department of Health,NHS Sheffield CCG,31/05/2022,C&M-PMS Contract Value,PRC DELEGATED CO-COMMISSIONING,SOTHALL MEDICAL CENTRE,40894926,76293.19,S20 1HQ
Department of Health,NHS Sheffield CCG,31/05/2022,C&M-PMS DES Learn Dsblty Hlth Chk,PRC DELEGATED CO-COMMISSIONING,SOTHALL MEDICAL CENTRE,40894926,1260,S20 1HQ
Department of Health,NHS Sheffield CCG,31/05/2022,C&M-PMS GP Statutory Levy,PRC DELEGATED CO-COMMISSIONING,SOTHALL MEDICAL CENTRE,40894926,162.72,S20 1HQ
Department of Health,NHS Sheffield CCG,31/05/2022,C&M-PMS LONG COVID ES,PRC DELEGATED CO-COMMISSIONING,SOTHALL MEDICAL CENTRE,40894926,1251.41,S20 1HQ
Department of Health,NHS Sheffield CCG,31/05/2022,C&M-PMS Out of Hours Opt Outs,PRC DELEGATED CO-COMMISSIONING,SOTHALL MEDICAL CENTRE,40894926,36.44,S20 1HQ
Department of Health,NHS Sheffield CCG,31/05/2022,C&M-PMS PCN DES Participation,PRC DELEGATED CO-COMMISSIONING,SOTHALL MEDICAL CENTRE,40894926,2705.13,S20 1HQ
Department of Health,NHS Sheffield CCG,31/05/2022,C&M-PMS Prem Notional Rent,PRC DELEGATED CO-COMMISSIONING,SOTHALL MEDICAL CENTRE,40894926,5237.5,S20 1HQ
Department of Health,NHS Sheffield CCG,31/05/2022,C&M-PMS Prem Rates,PRC DELEGATED CO-COMMISSIONING,SOTHALL MEDICAL CENTRE,40894926,911,S20 1HQ
Department of Health,NHS Sheffield CCG,31/05/2022,C&M-PMS Prem Water Rates,PRC DELEGATED CO-COMMISSIONING,SOTHALL MEDICAL CENTRE,40894926,245.33,S20 1HQ
Department of Health,NHS Sheffield CCG,31/05/2022,C&M-PMS QOF Aspiration,PRC DELEGATED CO-COMMISSIONING,SOTHALL MEDICAL CENTRE,40894926,9478.98,S20 1HQ
Department of Health,NHS Sheffield CCG,31/05/2022,C&M-PMS WEIGHT MANAGEMENT SERVICE,PRC DELEGATED CO-COMMISSIONING,SOTHALL MEDICAL CENTRE,40894926,241.5,S20 1HQ
Department of Health,NHS Sheffield CCG,31/05/2022,C&M-PMS Contract Value,PRC DELEGATED CO-COMMISSIONING,SLOAN MEDICAL CENTRE,40894934,107318.76,S8 0YH
Department of Health,NHS Sheffield CCG,31/05/2022,C&M-PMS GP Statutory Levy,PRC DELEGATED CO-COMMISSIONING,SLOAN MEDICAL CENTRE,40894934,659.65,S8 0YH
Department of Health,NHS Sheffield CCG,31/05/2022,C&M-PMS LONG COVID ES,PRC DELEGATED CO-COMMISSIONING,SLOAN MEDICAL CENTRE,40894934,1673.13,S8 0YH
Department of Health,NHS Sheffield CCG,31/05/2022,C&M-PMS PCN DES Participation,PRC DELEGATED CO-COMMISSIONING,SLOAN MEDICAL CENTRE,40894934,3705.62,S8 0YH
Department of Health,NHS Sheffield CCG,31/05/2022,C&M-PMS PCO Other,PRC DELEGATED CO-COMMISSIONING,SLOAN MEDICAL CENTRE,40894934,1670.4,S8 0YH
Department of Health,NHS Sheffield CCG,31/05/2022,C&M-PMS Prem Notional Rent,PRC DELEGATED CO-COMMISSIONING,SLOAN MEDICAL CENTRE,40894934,747.5,S8 0YH
Department of Health,NHS Sheffield CCG,31/05/2022,C&M-PMS Prem Rates,PRC DELEGATED CO-COMMISSIONING,SLOAN MEDICAL CENTRE,40894934,2832,S8 0YH
Department of Health,NHS Sheffield CCG,31/05/2022,C&M-PMS QOF Aspiration,PRC DELEGATED CO-COMMISSIONING,SLOAN MEDICAL CENTRE,40894934,10889.99,S8 0YH
Department of Health,NHS Sheffield CCG,31/05/2022,C&M-PMS WEIGHT MANAGEMENT SERVICE,PRC DELEGATED CO-COMMISSIONING,SLOAN MEDICAL CENTRE,40894934,11.5,S8 0YH
Department of Health,NHS Sheffield CCG,31/05/2022,C&M-PMS Contract Value,PRC DELEGATED CO-COMMISSIONING,NETHERGREEN SURGERY,40894941,70055.47,S11 7EJ
Department of Health,NHS Sheffield CCG,31/05/2022,C&M-PMS DES Learn Dsblty Hlth Chk,PRC DELEGATED CO-COMMISSIONING,NETHERGREEN SURGERY,40894941,840,S11 7EJ
Department of Health,NHS Sheffield CCG,31/05/2022,C&M-PMS GP Statutory Levy,PRC DELEGATED CO-COMMISSIONING,NETHERGREEN SURGERY,40894941,297.82,S11 7EJ
Department of Health,NHS Sheffield CCG,31/05/2022,C&M-PMS LONG COVID ES,PRC DELEGATED CO-COMMISSIONING,NETHERGREEN SURGERY,40894941,1151.46,S11 7EJ
Department of Health,NHS Sheffield CCG,31/05/2022,C&M-PMS PCN DES Participation,PRC DELEGATED CO-COMMISSIONING,NETHERGREEN SURGERY,40894941,2431.88,S11 7EJ
Department of Health,NHS Sheffield CCG,31/05/2022,C&M-PMS Prem Actual Rent,PRC DELEGATED CO-COMMISSIONING,NETHERGREEN SURGERY,40894941,5057.33,S11 7EJ
Department of Health,NHS Sheffield CCG,31/05/2022,C&M-PMS Prem Rates,PRC DELEGATED CO-COMMISSIONING,NETHERGREEN SURGERY,40894941,1285,S11 7EJ
Department of Health,NHS Sheffield CCG,31/05/2022,C&M-PMS Prem Water Rates,PRC DELEGATED CO-COMMISSIONING,NETHERGREEN SURGERY,40894941,155.37,S11 7EJ
Department of Health,NHS Sheffield CCG,31/05/2022,C&M-PMS QOF Aspiration,PRC DELEGATED CO-COMMISSIONING,NETHERGREEN SURGERY,40894941,7087.35,S11 7EJ
Department of Health,NHS Sheffield CCG,31/05/2022,C&M-PMS WEIGHT MANAGEMENT SERVICE,PRC DELEGATED CO-COMMISSIONING,NETHERGREEN SURGERY,40894941,69,S11 7EJ
Department of Health,NHS Sheffield CCG,31/05/2022,C&M-PMS Contract Value,PRC DELEGATED CO-COMMISSIONING,FIRTH PARK SURGERY,40894945,82589.8,S5 6HH
Department of Health,NHS Sheffield CCG,31/05/2022,C&M-PMS DES Learn Dsblty Hlth Chk,PRC DELEGATED CO-COMMISSIONING,FIRTH PARK SURGERY,40894945,2660,S5 6HH
Department of Health,NHS Sheffield CCG,31/05/2022,C&M-PMS GP Statutory Levy,PRC DELEGATED CO-COMMISSIONING,FIRTH PARK SURGERY,40894945,303.84,S5 6HH
Department of Health,NHS Sheffield CCG,31/05/2022,C&M-PMS LONG COVID ES,PRC DELEGATED CO-COMMISSIONING,FIRTH PARK SURGERY,40894945,1244.34,S5 6HH
Department of Health,NHS Sheffield CCG,31/05/2022,C&M-PMS PCN DES Participation,PRC DELEGATED CO-COMMISSIONING,FIRTH PARK SURGERY,40894945,2879.16,S5 6HH
Department of Health,NHS Sheffield CCG,31/05/2022,C&M-PMS PCO Other,PRC DELEGATED CO-COMMISSIONING,FIRTH PARK SURGERY,40894945,6203,S5 6HH
Department of Health,NHS Sheffield CCG,31/05/2022,C&M-PMS Prem Notional Rent,PRC DELEGATED CO-COMMISSIONING,FIRTH PARK SURGERY,40894945,4666.67,S5 6HH
Department of Health,NHS Sheffield CCG,31/05/2022,C&M-PMS Prem Rates,PRC DELEGATED CO-COMMISSIONING,FIRTH PARK SURGERY,40894945,2761.75,S5 6HH
Department of Health,NHS Sheffield CCG,31/05/2022,C&M-PMS Prem Water Rates,PRC DELEGATED CO-COMMISSIONING,FIRTH PARK SURGERY,40894945,160.74,S5 6HH
Department of Health,NHS Sheffield CCG,31/05/2022,C&M-PMS QOF Aspiration,PRC DELEGATED CO-COMMISSIONING,FIRTH PARK SURGERY,40894945,7371.46,S5 6HH
Department of Health,NHS Sheffield CCG,31/05/2022,C&M-PMS WEIGHT MANAGEMENT SERVICE,PRC DELEGATED CO-COMMISSIONING,FIRTH PARK SURGERY,40894945,34.5,S5 6HH
Department of Health,NHS Sheffield CCG,31/05/2022,C&M-PMS Contract Value,PRC DELEGATED CO-COMMISSIONING,DR MILNER & PARTNERS,40894950,82368.57,S6 4JQ
Department of Health,NHS Sheffield CCG,31/05/2022,C&M-PMS DES Learn Dsblty Hlth Chk,PRC DELEGATED CO-COMMISSIONING,DR MILNER & PARTNERS,40894950,5180,S6 4JQ
Department of Health,NHS Sheffield CCG,31/05/2022,C&M-PMS GP Statutory Levy,PRC DELEGATED CO-COMMISSIONING,DR MILNER & PARTNERS,40894950,251.76,S6 4JQ
Department of Health,NHS Sheffield CCG,31/05/2022,C&M-PMS LONG COVID ES,PRC DELEGATED CO-COMMISSIONING,DR MILNER & PARTNERS,40894950,1329.9,S6 4JQ
Department of Health,NHS Sheffield CCG,31/05/2022,C&M-PMS Out of Hours Opt Outs,PRC DELEGATED CO-COMMISSIONING,DR MILNER & PARTNERS,40894950,38.76,S6 4JQ
Department of Health,NHS Sheffield CCG,31/05/2022,C&M-PMS PCN DES Participation,PRC DELEGATED CO-COMMISSIONING,DR MILNER & PARTNERS,40894950,2898.95,S6 4JQ
Department of Health,NHS Sheffield CCG,31/05/2022,C&M-PMS Prem Actual Rent,PRC DELEGATED CO-COMMISSIONING,DR MILNER & PARTNERS,40894950,11382,S6 4JQ
Department of Health,NHS Sheffield CCG,31/05/2022,C&M-PMS Prem Notional Rent,PRC DELEGATED CO-COMMISSIONING,DR MILNER & PARTNERS,40894950,4614.58,S6 4JQ
Department of Health,NHS Sheffield CCG,31/05/2022,C&M-PMS Prem Rates,PRC DELEGATED CO-COMMISSIONING,DR MILNER & PARTNERS,40894950,3888.25,S6 4JQ
Department of Health,NHS Sheffield CCG,31/05/2022,C&M-PMS QOF Aspiration,PRC DELEGATED CO-COMMISSIONING,DR MILNER & PARTNERS,40894950,7724.46,S6 4JQ
Department of Health,NHS Sheffield CCG,31/05/2022,C&M-PMS WEIGHT MANAGEMENT SERVICE,PRC DELEGATED CO-COMMISSIONING,DR MILNER & PARTNERS,40894950,11.5,S6 4JQ
Department of Health,NHS Sheffield CCG,31/05/2022,C&M-PMS Contract Value,PRC DELEGATED CO-COMMISSIONING,MANCHESTER ROAD SURGERY SHEFFIELD,40894955,36637.41,S10 5PN
Department of Health,NHS Sheffield CCG,31/05/2022,C&M-PMS DES Learn Dsblty Hlth Chk,PRC DELEGATED CO-COMMISSIONING,MANCHESTER ROAD SURGERY SHEFFIELD,40894955,2520,S10 5PN
Department of Health,NHS Sheffield CCG,31/05/2022,C&M-PMS GP Statutory Levy,PRC DELEGATED CO-COMMISSIONING,MANCHESTER ROAD SURGERY SHEFFIELD,40894955,154.39,S10 5PN
Department of Health,NHS Sheffield CCG,31/05/2022,C&M-PMS LONG COVID ES,PRC DELEGATED CO-COMMISSIONING,MANCHESTER ROAD SURGERY SHEFFIELD,40894955,604.87,S10 5PN
Department of Health,NHS Sheffield CCG,31/05/2022,C&M-PMS PCN DES Participation,PRC DELEGATED CO-COMMISSIONING,MANCHESTER ROAD SURGERY SHEFFIELD,40894955,1274.7,S10 5PN
Department of Health,NHS Sheffield CCG,31/05/2022,C&M-PMS PCO Other,PRC DELEGATED CO-COMMISSIONING,MANCHESTER ROAD SURGERY SHEFFIELD,40894955,3329,S10 5PN
Department of Health,NHS Sheffield CCG,31/05/2022,C&M-PMS Prem Actual Rent,PRC DELEGATED CO-COMMISSIONING,MANCHESTER ROAD SURGERY SHEFFIELD,40894955,3036.69,S10 5PN
Department of Health,NHS Sheffield CCG,31/05/2022,C&M-PMS Prem Notional Rent,PRC DELEGATED CO-COMMISSIONING,MANCHESTER ROAD SURGERY SHEFFIELD,40894955,442.92,S10 5PN
Department of Health,NHS Sheffield CCG,31/05/2022,C&M-PMS Prem Rates,PRC DELEGATED CO-COMMISSIONING,MANCHESTER ROAD SURGERY SHEFFIELD,40894955,986,S10 5PN
Department of Health,NHS Sheffield CCG,31/05/2022,C&M-PMS QOF Aspiration,PRC DELEGATED CO-COMMISSIONING,MANCHESTER ROAD SURGERY SHEFFIELD,40894955,4263.65,S10 5PN
Department of Health,NHS Sheffield CCG,31/05/2022,C&M-PMS WEIGHT MANAGEMENT SERVICE,PRC DELEGATED CO-COMMISSIONING,MANCHESTER ROAD SURGERY SHEFFIELD,40894955,23,S10 5PN
Department of Health,NHS Sheffield CCG,31/05/2022,C&M-PCN-PMS DES Leadership Payment,PRC DELEGATED CO-COMMISSIONING,DYKES HALL MEDICAL CENTRE,40894958,1984.46,S6 4GQ
Department of Health,NHS Sheffield CCG,31/05/2022,C&M-PMS Contract Value,PRC DELEGATED CO-COMMISSIONING,DYKES HALL MEDICAL CENTRE,40894958,73865.93,S6 4GQ
Department of Health,NHS Sheffield CCG,31/05/2022,C&M-PMS DES Extended Hours Access,PRC DELEGATED CO-COMMISSIONING,DYKES HALL MEDICAL CENTRE,40894958,4271.4,S6 4GQ
Department of Health,NHS Sheffield CCG,31/05/2022,C&M-PMS DES Learn Dsblty Hlth Chk,PRC DELEGATED CO-COMMISSIONING,DYKES HALL MEDICAL CENTRE,40894958,1540,S6 4GQ
Department of Health,NHS Sheffield CCG,31/05/2022,C&M-PMS GP Statutory Levy,PRC DELEGATED CO-COMMISSIONING,DYKES HALL MEDICAL CENTRE,40894958,346.85,S6 4GQ
Department of Health,NHS Sheffield CCG,31/05/2022,C&M-PMS LONG COVID ES,PRC DELEGATED CO-COMMISSIONING,DYKES HALL MEDICAL CENTRE,40894958,1171.18,S6 4GQ
Department of Health,NHS Sheffield CCG,31/05/2022,C&M-PMS Out of Hours Opt Outs,PRC DELEGATED CO-COMMISSIONING,DYKES HALL MEDICAL CENTRE,40894958,25.62,S6 4GQ
Department of Health,NHS Sheffield CCG,31/05/2022,C&M-PMS PCN DES Clinical Director,PRC DELEGATED CO-COMMISSIONING,DYKES HALL MEDICAL CENTRE,40894958,2183.16,S6 4GQ
Department of Health,NHS Sheffield CCG,31/05/2022,C&M-PMS PCN DES PCN support,PRC DELEGATED CO-COMMISSIONING,DYKES HALL MEDICAL CENTRE,40894958,4449.38,S6 4GQ
Department of Health,NHS Sheffield CCG,31/05/2022,C&M-PMS PCN DES Participation,PRC DELEGATED CO-COMMISSIONING,DYKES HALL MEDICAL CENTRE,40894958,2636.9,S6 4GQ
Department of Health,NHS Sheffield CCG,31/05/2022,C&M-PMS PCO Other,PRC DELEGATED CO-COMMISSIONING,DYKES HALL MEDICAL CENTRE,40894958,5741,S6 4GQ
Department of Health,NHS Sheffield CCG,31/05/2022,C&M-PMS Prem Notional Rent,PRC DELEGATED CO-COMMISSIONING,DYKES HALL MEDICAL CENTRE,40894958,5527.08,S6 4GQ
Department of Health,NHS Sheffield CCG,31/05/2022,C&M-PMS Prem Rates,PRC DELEGATED CO-COMMISSIONING,DYKES HALL MEDICAL CENTRE,40894958,910,S6 4GQ
Department of Health,NHS Sheffield CCG,31/05/2022,C&M-PMS Prem Water Rates,PRC DELEGATED CO-COMMISSIONING,DYKES HALL MEDICAL CENTRE,40894958,119.1,S6 4GQ
Department of Health,NHS Sheffield CCG,31/05/2022,C&M-PMS QOF Aspiration,PRC DELEGATED CO-COMMISSIONING,DYKES HALL MEDICAL CENTRE,40894958,9535.44,S6 4GQ
Department of Health,NHS Sheffield CCG,31/05/2022,C&M-PMS WEIGHT MANAGEMENT SERVICE,PRC DELEGATED CO-COMMISSIONING,DYKES HALL MEDICAL CENTRE,40894958,1253.5,S6 4GQ
Department of Health,NHS Sheffield CCG,31/05/2022,C&M-PMS Contract Value,PRC DELEGATED CO-COMMISSIONING,BURNGREAVE SURGERY,40894966,64449.34,S3 9DA
Department of Health,NHS Sheffield CCG,31/05/2022,C&M-PMS GP Statutory Levy,PRC DELEGATED CO-COMMISSIONING,BURNGREAVE SURGERY,40894966,169.12,S3 9DA
Department of Health,NHS Sheffield CCG,31/05/2022,C&M-PMS LONG COVID ES,PRC DELEGATED CO-COMMISSIONING,BURNGREAVE SURGERY,40894966,854.48,S3 9DA
Department of Health,NHS Sheffield CCG,31/05/2022,C&M-PMS PCN DES Participation,PRC DELEGATED CO-COMMISSIONING,BURNGREAVE SURGERY,40894966,2161.61,S3 9DA
Department of Health,NHS Sheffield CCG,31/05/2022,C&M-PMS PCO Other,PRC DELEGATED CO-COMMISSIONING,BURNGREAVE SURGERY,40894966,4580,S3 9DA
Department of Health,NHS Sheffield CCG,31/05/2022,C&M-PMS Prem Notional Rent,PRC DELEGATED CO-COMMISSIONING,BURNGREAVE SURGERY,40894966,6622.92,S3 9DA
Department of Health,NHS Sheffield CCG,31/05/2022,C&M-PMS Prem Rates,PRC DELEGATED CO-COMMISSIONING,BURNGREAVE SURGERY,40894966,4041.5,S3 9DA
Department of Health,NHS Sheffield CCG,31/05/2022,C&M-PMS Prem Water Rates,PRC DELEGATED CO-COMMISSIONING,BURNGREAVE SURGERY,40894966,206.27,S3 9DA
Department of Health,NHS Sheffield CCG,31/05/2022,C&M-PMS QOF Aspiration,PRC DELEGATED CO-COMMISSIONING,BURNGREAVE SURGERY,40894966,5759.17,S3 9DA
Department of Health,NHS Sheffield CCG,31/05/2022,C&M-PMS WEIGHT MANAGEMENT SERVICE,PRC DELEGATED CO-COMMISSIONING,BURNGREAVE SURGERY,40894966,46,S3 9DA
Department of Health,NHS Sheffield CCG,31/05/2022,C&M-PMS Contract Value,PRC DELEGATED CO-COMMISSIONING,JAUNTY SPRINGS HEALTH CENTRE,40894970,33330.24,S12 3DZ
Department of Health,NHS Sheffield CCG,31/05/2022,C&M-PMS DES Learn Dsblty Hlth Chk,PRC DELEGATED CO-COMMISSIONING,JAUNTY SPRINGS HEALTH CENTRE,40894970,420,S12 3DZ
Department of Health,NHS Sheffield CCG,31/05/2022,C&M-PMS GP Statutory Levy,PRC DELEGATED CO-COMMISSIONING,JAUNTY SPRINGS HEALTH CENTRE,40894970,338.77,S12 3DZ
Department of Health,NHS Sheffield CCG,31/05/2022,C&M-PMS LONG COVID ES,PRC DELEGATED CO-COMMISSIONING,JAUNTY SPRINGS HEALTH CENTRE,40894970,472.69,S12 3DZ
Department of Health,NHS Sheffield CCG,31/05/2022,C&M-PMS Out of Hours Opt Outs,PRC DELEGATED CO-COMMISSIONING,JAUNTY SPRINGS HEALTH CENTRE,40894970,78.14,S12 3DZ
Department of Health,NHS Sheffield CCG,31/05/2022,C&M-PMS PCN DES Participation,PRC DELEGATED CO-COMMISSIONING,JAUNTY SPRINGS HEALTH CENTRE,40894970,1177.11,S12 3DZ
Department of Health,NHS Sheffield CCG,31/05/2022,C&M-PMS PCO Other,PRC DELEGATED CO-COMMISSIONING,JAUNTY SPRINGS HEALTH CENTRE,40894970,535.8,S12 3DZ
Department of Health,NHS Sheffield CCG,31/05/2022,C&M-PMS Prem Notional Rent,PRC DELEGATED CO-COMMISSIONING,JAUNTY SPRINGS HEALTH CENTRE,40894970,3208.33,S12 3DZ
Department of Health,NHS Sheffield CCG,31/05/2022,C&M-PMS Prem Rates,PRC DELEGATED CO-COMMISSIONING,JAUNTY SPRINGS HEALTH CENTRE,40894970,848,S12 3DZ
Department of Health,NHS Sheffield CCG,31/05/2022,C&M-PMS QOF Aspiration,PRC DELEGATED CO-COMMISSIONING,JAUNTY SPRINGS HEALTH CENTRE,40894970,3642.14,S12 3DZ
Department of Health,NHS Sheffield CCG,31/05/2022,C&M-PMS WEIGHT MANAGEMENT SERVICE,PRC DELEGATED CO-COMMISSIONING,JAUNTY SPRINGS HEALTH CENTRE,40894970,23,S12 3DZ
Department of Health,NHS Sheffield CCG,31/05/2022,C&M-PMS Contract Value,PRC DELEGATED CO-COMMISSIONING,PAGE HALL MEDICAL CENTRE,40894975,63395.27,S4 8GB
Department of Health,NHS Sheffield CCG,31/05/2022,C&M-PMS DES Learn Dsblty Hlth Chk,PRC DELEGATED CO-COMMISSIONING,PAGE HALL MEDICAL CENTRE,40894975,1960,S4 8GB
Department of Health,NHS Sheffield CCG,31/05/2022,C&M-PMS GP Statutory Levy,PRC DELEGATED CO-COMMISSIONING,PAGE HALL MEDICAL CENTRE,40894975,277.41,S4 8GB
Department of Health,NHS Sheffield CCG,31/05/2022,C&M-PMS LONG COVID ES,PRC DELEGATED CO-COMMISSIONING,PAGE HALL MEDICAL CENTRE,40894975,987.91,S4 8GB
Department of Health,NHS Sheffield CCG,31/05/2022,C&M-PMS PCN DES Participation,PRC DELEGATED CO-COMMISSIONING,PAGE HALL MEDICAL CENTRE,40894975,2206.47,S4 8GB
Department of Health,NHS Sheffield CCG,31/05/2022,C&M-PMS Prem Notional Rent,PRC DELEGATED CO-COMMISSIONING,PAGE HALL MEDICAL CENTRE,40894975,4858.33,S4 8GB
Department of Health,NHS Sheffield CCG,31/05/2022,C&M-PMS Prem Rates,PRC DELEGATED CO-COMMISSIONING,PAGE HALL MEDICAL CENTRE,40894975,848,S4 8GB
Department of Health,NHS Sheffield CCG,31/05/2022,C&M-PMS QOF Aspiration,PRC DELEGATED CO-COMMISSIONING,PAGE HALL MEDICAL CENTRE,40894975,4835.44,S4 8GB
Department of Health,NHS Sheffield CCG,31/05/2022,C&M-PMS WEIGHT MANAGEMENT SERVICE,PRC DELEGATED CO-COMMISSIONING,PAGE HALL MEDICAL CENTRE,40894975,92,S4 8GB
Department of Health,NHS Sheffield CCG,31/05/2022,C&M-PMS Contract Value,PRC DELEGATED CO-COMMISSIONING,FALKLAND HOUSE,40894979,29020.7,S11 7PL
Department of Health,NHS Sheffield CCG,31/05/2022,C&M-PMS GP Statutory Levy,PRC DELEGATED CO-COMMISSIONING,FALKLAND HOUSE,40894979,447.65,S11 7PL
Department of Health,NHS Sheffield CCG,31/05/2022,C&M-PMS LONG COVID ES,PRC DELEGATED CO-COMMISSIONING,FALKLAND HOUSE,40894979,495.63,S11 7PL
Department of Health,NHS Sheffield CCG,31/05/2022,C&M-PMS PCN DES Participation,PRC DELEGATED CO-COMMISSIONING,FALKLAND HOUSE,40894979,1004.57,S11 7PL
Department of Health,NHS Sheffield CCG,31/05/2022,C&M-PMS Prem Notional Rent,PRC DELEGATED CO-COMMISSIONING,FALKLAND HOUSE,40894979,1904.17,S11 7PL
Department of Health,NHS Sheffield CCG,31/05/2022,C&M-PMS Prem Rates,PRC DELEGATED CO-COMMISSIONING,FALKLAND HOUSE,40894979,786,S11 7PL
Department of Health,NHS Sheffield CCG,31/05/2022,C&M-PMS Prem Water Rates,PRC DELEGATED CO-COMMISSIONING,FALKLAND HOUSE,40894979,200.73,S11 7PL
Department of Health,NHS Sheffield CCG,31/05/2022,C&M-PMS QOF Aspiration,PRC DELEGATED CO-COMMISSIONING,FALKLAND HOUSE,40894979,3297.03,S11 7PL
Department of Health,NHS Sheffield CCG,31/05/2022,C&M-PMS Contract Value,PRC DELEGATED CO-COMMISSIONING,RUSTLINGS ROAD MEDICAL CENTRE,40894983,31798.79,S11 7AB
Department of Health,NHS Sheffield CCG,31/05/2022,C&M-PMS DES Learn Dsblty Hlth Chk,PRC DELEGATED CO-COMMISSIONING,RUSTLINGS ROAD MEDICAL CENTRE,40894983,280,S11 7AB
Department of Health,NHS Sheffield CCG,31/05/2022,C&M-PMS GP Statutory Levy,PRC DELEGATED CO-COMMISSIONING,RUSTLINGS ROAD MEDICAL CENTRE,40894983,198.52,S11 7AB
Department of Health,NHS Sheffield CCG,31/05/2022,C&M-PMS LONG COVID ES,PRC DELEGATED CO-COMMISSIONING,RUSTLINGS ROAD MEDICAL CENTRE,40894983,580.94,S11 7AB
Department of Health,NHS Sheffield CCG,31/05/2022,C&M-PMS Out of Hours Opt Outs,PRC DELEGATED CO-COMMISSIONING,RUSTLINGS ROAD MEDICAL CENTRE,40894983,47,S11 7AB
Department of Health,NHS Sheffield CCG,31/05/2022,C&M-PMS PCN DES Participation,PRC DELEGATED CO-COMMISSIONING,RUSTLINGS ROAD MEDICAL CENTRE,40894983,1100.28,S11 7AB
Department of Health,NHS Sheffield CCG,31/05/2022,C&M-PMS PCO Other,PRC DELEGATED CO-COMMISSIONING,RUSTLINGS ROAD MEDICAL CENTRE,40894983,646.2,S11 7AB
Department of Health,NHS Sheffield CCG,31/05/2022,C&M-PMS Prem Notional Rent,PRC DELEGATED CO-COMMISSIONING,RUSTLINGS ROAD MEDICAL CENTRE,40894983,1341.67,S11 7AB
Department of Health,NHS Sheffield CCG,31/05/2022,C&M-PMS QOF Aspiration,PRC DELEGATED CO-COMMISSIONING,RUSTLINGS ROAD MEDICAL CENTRE,40894983,3125.75,S11 7AB
Department of Health,NHS Sheffield CCG,31/05/2022,C&M-PMS WEIGHT MANAGEMENT SERVICE,PRC DELEGATED CO-COMMISSIONING,RUSTLINGS ROAD MEDICAL CENTRE,40894983,11.5,S11 7AB
Department of Health,NHS Sheffield CCG,31/05/2022,C&M-APMS Contract Value,PRC DELEGATED CO-COMMISSIONING,CLOVER GROUP PRACTICE,40894988,113914.72,S9 4QH
Department of Health,NHS Sheffield CCG,31/05/2022,C&M-APMS DES Learn Dsblty Hlth Chk,PRC DELEGATED CO-COMMISSIONING,CLOVER GROUP PRACTICE,40894988,420,S9 4QH
Department of Health,NHS Sheffield CCG,31/05/2022,C&M-APMS LONG COVID ES,PRC DELEGATED CO-COMMISSIONING,CLOVER GROUP PRACTICE,40894988,1866.08,S9 4QH
Department of Health,NHS Sheffield CCG,31/05/2022,C&M-APMS OOH Opt Outs,PRC DELEGATED CO-COMMISSIONING,CLOVER GROUP PRACTICE,40894988,32.58,S9 4QH
Department of Health,NHS Sheffield CCG,31/05/2022,C&M-APMS PCN DES Participation,PRC DELEGATED CO-COMMISSIONING,CLOVER GROUP PRACTICE,40894988,4287,S9 4QH
Department of Health,NHS Sheffield CCG,31/05/2022,C&M-APMS Prem Actual Rent,PRC DELEGATED CO-COMMISSIONING,CLOVER GROUP PRACTICE,40894988,5169.68,S9 4QH
Department of Health,NHS Sheffield CCG,31/05/2022,C&M-APMS Prem Healthcentre Rent,PRC DELEGATED CO-COMMISSIONING,CLOVER GROUP PRACTICE,40894988,50718.62,S9 4QH
Department of Health,NHS Sheffield CCG,31/05/2022,C&M-APMS Prem Notional Rent,PRC DELEGATED CO-COMMISSIONING,CLOVER GROUP PRACTICE,40894988,2804.17,S9 4QH
Department of Health,NHS Sheffield CCG,31/05/2022,C&M-APMS QOF Aspiration,PRC DELEGATED CO-COMMISSIONING,CLOVER GROUP PRACTICE,40894988,9098.41,S9 4QH
Department of Health,NHS Sheffield CCG,31/05/2022,C&M-APMS WEIGHT MANAGEMENT SERVICE,PRC DELEGATED CO-COMMISSIONING,CLOVER GROUP PRACTICE,40894988,103.5,S9 4QH
Department of Health,NHS Sheffield CCG,31/05/2022,C&M-PMS GP Statutory Levy,PRC DELEGATED CO-COMMISSIONING,CLOVER GROUP PRACTICE,40894988,326.38,S9 4QH
Department of Health,NHS Sheffield CCG,31/05/2022,C&M-PMS Contract Value,PRC DELEGATED CO-COMMISSIONING,WOODHOUSE HEALTH CENTRE,40894996,104490.38,S13 7LY
Department of Health,NHS Sheffield CCG,31/05/2022,C&M-PMS DES Learn Dsblty Hlth Chk,PRC DELEGATED CO-COMMISSIONING,WOODHOUSE HEALTH CENTRE,40894996,5740,S13 7LY
Department of Health,NHS Sheffield CCG,31/05/2022,C&M-PMS GP Statutory Levy,PRC DELEGATED CO-COMMISSIONING,WOODHOUSE HEALTH CENTRE,40894996,351.58,S13 7LY
Department of Health,NHS Sheffield CCG,31/05/2022,C&M-PMS LONG COVID ES,PRC DELEGATED CO-COMMISSIONING,WOODHOUSE HEALTH CENTRE,40894996,1507.59,S13 7LY
Department of Health,NHS Sheffield CCG,31/05/2022,C&M-PMS PCN DES Participation,PRC DELEGATED CO-COMMISSIONING,WOODHOUSE HEALTH CENTRE,40894996,3708.15,S13 7LY
Department of Health,NHS Sheffield CCG,31/05/2022,C&M-PMS PCO Other,PRC DELEGATED CO-COMMISSIONING,WOODHOUSE HEALTH CENTRE,40894996,1470,S13 7LY
Department of Health,NHS Sheffield CCG,31/05/2022,C&M-PMS Prem Notional Rent,PRC DELEGATED CO-COMMISSIONING,WOODHOUSE HEALTH CENTRE,40894996,6889.58,S13 7LY
Department of Health,NHS Sheffield CCG,31/05/2022,C&M-PMS Prem Rates,PRC DELEGATED CO-COMMISSIONING,WOODHOUSE HEALTH CENTRE,40894996,1459,S13 7LY
Department of Health,NHS Sheffield CCG,31/05/2022,C&M-PMS Prem Water Rates,PRC DELEGATED CO-COMMISSIONING,WOODHOUSE HEALTH CENTRE,40894996,393.56,S13 7LY
Department of Health,NHS Sheffield CCG,31/05/2022,C&M-PMS QOF Aspiration,PRC DELEGATED CO-COMMISSIONING,WOODHOUSE HEALTH CENTRE,40894996,13493.34,S13 7LY
Department of Health,NHS Sheffield CCG,31/05/2022,C&M-PMS WEIGHT MANAGEMENT SERVICE,PRC DELEGATED CO-COMMISSIONING,WOODHOUSE HEALTH CENTRE,40894996,299,S13 7LY
Department of Health,NHS Sheffield CCG,31/05/2022,C&M-PMS Contract Value,PRC DELEGATED CO-COMMISSIONING,DEEPCAR MEDICAL CENTRE,40895003,43888.4,S36 2RA
Department of Health,NHS Sheffield CCG,31/05/2022,C&M-PMS DES Learn Dsblty Hlth Chk,PRC DELEGATED CO-COMMISSIONING,DEEPCAR MEDICAL CENTRE,40895003,280,S36 2RA
Department of Health,NHS Sheffield CCG,31/05/2022,C&M-PMS GP Statutory Levy,PRC DELEGATED CO-COMMISSIONING,DEEPCAR MEDICAL CENTRE,40895003,370.51,S36 2RA
Department of Health,NHS Sheffield CCG,31/05/2022,C&M-PMS LONG COVID ES,PRC DELEGATED CO-COMMISSIONING,DEEPCAR MEDICAL CENTRE,40895003,655.71,S36 2RA
Department of Health,NHS Sheffield CCG,31/05/2022,C&M-PMS PCN DES Participation,PRC DELEGATED CO-COMMISSIONING,DEEPCAR MEDICAL CENTRE,40895003,1541.24,S36 2RA
Department of Health,NHS Sheffield CCG,31/05/2022,C&M-PMS PCO Other,PRC DELEGATED CO-COMMISSIONING,DEEPCAR MEDICAL CENTRE,40895003,3482,S36 2RA
Department of Health,NHS Sheffield CCG,31/05/2022,C&M-PMS Prem Healthcentre Rent,PRC DELEGATED CO-COMMISSIONING,DEEPCAR MEDICAL CENTRE,40895003,31188.15,S36 2RA
Department of Health,NHS Sheffield CCG,31/05/2022,C&M-PMS QOF Aspiration,PRC DELEGATED CO-COMMISSIONING,DEEPCAR MEDICAL CENTRE,40895003,4473.38,S36 2RA
Department of Health,NHS Sheffield CCG,31/05/2022,C&M-PMS WEIGHT MANAGEMENT SERVICE,PRC DELEGATED CO-COMMISSIONING,DEEPCAR MEDICAL CENTRE,40895003,11.5,S36 2RA
Department of Health,NHS Sheffield CCG,31/05/2022,C&M-PMS Contract Value,PRC DELEGATED CO-COMMISSIONING,GREEN CROSS GROUP PRACTICE,40895008,64839.67,S5 0AE
Department of Health,NHS Sheffield CCG,31/05/2022,C&M-PMS DES Learn Dsblty Hlth Chk,PRC DELEGATED CO-COMMISSIONING,GREEN CROSS GROUP PRACTICE,40895008,1260,S5 0AE
Department of Health,NHS Sheffield CCG,31/05/2022,C&M-PMS GP Statutory Levy,PRC DELEGATED CO-COMMISSIONING,GREEN CROSS GROUP PRACTICE,40895008,444.29,S5 0AE
Department of Health,NHS Sheffield CCG,31/05/2022,C&M-PMS LONG COVID ES,PRC DELEGATED CO-COMMISSIONING,GREEN CROSS GROUP PRACTICE,40895008,969.56,S5 0AE
Department of Health,NHS Sheffield CCG,31/05/2022,C&M-PMS Out of Hours Opt Outs,PRC DELEGATED CO-COMMISSIONING,GREEN CROSS GROUP PRACTICE,40895008,20.7,S5 0AE
Department of Health,NHS Sheffield CCG,31/05/2022,C&M-PMS PCN DES Participation,PRC DELEGATED CO-COMMISSIONING,GREEN CROSS GROUP PRACTICE,40895008,1933.46,S5 0AE
Department of Health,NHS Sheffield CCG,31/05/2022,C&M-PMS Prem Notional Rent,PRC DELEGATED CO-COMMISSIONING,GREEN CROSS GROUP PRACTICE,40895008,5558.33,S5 0AE
Department of Health,NHS Sheffield CCG,31/05/2022,C&M-PMS QOF Aspiration,PRC DELEGATED CO-COMMISSIONING,GREEN CROSS GROUP PRACTICE,40895008,6437.82,S5 0AE
Department of Health,NHS Sheffield CCG,31/05/2022,C&M-PMS WEIGHT MANAGEMENT SERVICE,PRC DELEGATED CO-COMMISSIONING,GREEN CROSS GROUP PRACTICE,40895008,11.5,S5 0AE
Department of Health,NHS Sheffield CCG,31/05/2022,C&M-PMS Contract Value,PRC DELEGATED CO-COMMISSIONING,MOSBOROUGH HEALTH CENTRE,40895013,54484.24,S20 5BQ
Department of Health,NHS Sheffield CCG,31/05/2022,C&M-PMS DES Learn Dsblty Hlth Chk,PRC DELEGATED CO-COMMISSIONING,MOSBOROUGH HEALTH CENTRE,40895013,2800,S20 5BQ
Department of Health,NHS Sheffield CCG,31/05/2022,C&M-PMS GP Statutory Levy,PRC DELEGATED CO-COMMISSIONING,MOSBOROUGH HEALTH CENTRE,40895013,249.45,S20 5BQ
Department of Health,NHS Sheffield CCG,31/05/2022,C&M-PMS LONG COVID ES,PRC DELEGATED CO-COMMISSIONING,MOSBOROUGH HEALTH CENTRE,40895013,863.29,S20 5BQ
Department of Health,NHS Sheffield CCG,31/05/2022,C&M-PMS PCN DES Participation,PRC DELEGATED CO-COMMISSIONING,MOSBOROUGH HEALTH CENTRE,40895013,1924.88,S20 5BQ
Department of Health,NHS Sheffield CCG,31/05/2022,C&M-PMS PCO Other,PRC DELEGATED CO-COMMISSIONING,MOSBOROUGH HEALTH CENTRE,40895013,890.6,S20 5BQ
Department of Health,NHS Sheffield CCG,31/05/2022,C&M-PMS Prem Notional Rent,PRC DELEGATED CO-COMMISSIONING,MOSBOROUGH HEALTH CENTRE,40895013,4202.08,S20 5BQ
Department of Health,NHS Sheffield CCG,31/05/2022,C&M-PMS Prem Rates,PRC DELEGATED CO-COMMISSIONING,MOSBOROUGH HEALTH CENTRE,40895013,711,S20 5BQ
Department of Health,NHS Sheffield CCG,31/05/2022,C&M-PMS Prem Water Rates,PRC DELEGATED CO-COMMISSIONING,MOSBOROUGH HEALTH CENTRE,40895013,45.11,S20 5BQ
Department of Health,NHS Sheffield CCG,31/05/2022,C&M-PMS QOF Aspiration,PRC DELEGATED CO-COMMISSIONING,MOSBOROUGH HEALTH CENTRE,40895013,6289.28,S20 5BQ
Department of Health,NHS Sheffield CCG,31/05/2022,C&M-PMS WEIGHT MANAGEMENT SERVICE,PRC DELEGATED CO-COMMISSIONING,MOSBOROUGH HEALTH CENTRE,40895013,92,S20 5BQ
Department of Health,NHS Sheffield CCG,31/05/2022,C&M-PMS Contract Value,PRC DELEGATED CO-COMMISSIONING,SELBORNE ROAD MEDICAL CENTRE,40895018,20672.46,S10 5ND
Department of Health,NHS Sheffield CCG,31/05/2022,C&M-PMS DES Learn Dsblty Hlth Chk,PRC DELEGATED CO-COMMISSIONING,SELBORNE ROAD MEDICAL CENTRE,40895018,1960,S10 5ND
Department of Health,NHS Sheffield CCG,31/05/2022,C&M-PMS GP Statutory Levy,PRC DELEGATED CO-COMMISSIONING,SELBORNE ROAD MEDICAL CENTRE,40895018,299.99,S10 5ND
Department of Health,NHS Sheffield CCG,31/05/2022,C&M-PMS LONG COVID ES,PRC DELEGATED CO-COMMISSIONING,SELBORNE ROAD MEDICAL CENTRE,40895018,325.25,S10 5ND
Department of Health,NHS Sheffield CCG,31/05/2022,C&M-PMS PCN DES Participation,PRC DELEGATED CO-COMMISSIONING,SELBORNE ROAD MEDICAL CENTRE,40895018,722.51,S10 5ND
Department of Health,NHS Sheffield CCG,31/05/2022,C&M-PMS Prem Notional Rent,PRC DELEGATED CO-COMMISSIONING,SELBORNE ROAD MEDICAL CENTRE,40895018,1735.42,S10 5ND
Department of Health,NHS Sheffield CCG,31/05/2022,C&M-PMS QOF Aspiration,PRC DELEGATED CO-COMMISSIONING,SELBORNE ROAD MEDICAL CENTRE,40895018,2307.57,S10 5ND
Department of Health,NHS Sheffield CCG,31/05/2022,C&M-PMS Contract Value,PRC DELEGATED CO-COMMISSIONING,DR MEHROTRA & PARTNER,40895024,26680.5,S9 5DH
Department of Health,NHS Sheffield CCG,31/05/2022,C&M-PMS GP Statutory Levy,PRC DELEGATED CO-COMMISSIONING,DR MEHROTRA & PARTNER,40895024,203.81,S9 5DH
Department of Health,NHS Sheffield CCG,31/05/2022,C&M-PMS LONG COVID ES,PRC DELEGATED CO-COMMISSIONING,DR MEHROTRA & PARTNER,40895024,377.7,S9 5DH
Department of Health,NHS Sheffield CCG,31/05/2022,C&M-PMS PCN DES Participation,PRC DELEGATED CO-COMMISSIONING,DR MEHROTRA & PARTNER,40895024,924.43,S9 5DH
Department of Health,NHS Sheffield CCG,31/05/2022,C&M-PMS Prem Notional Rent,PRC DELEGATED CO-COMMISSIONING,DR MEHROTRA & PARTNER,40895024,5157.29,S9 5DH
Department of Health,NHS Sheffield CCG,31/05/2022,C&M-PMS Prem Rates,PRC DELEGATED CO-COMMISSIONING,DR MEHROTRA & PARTNER,40895024,1818.75,S9 5DH
Department of Health,NHS Sheffield CCG,31/05/2022,C&M-PMS QOF Aspiration,PRC DELEGATED CO-COMMISSIONING,DR MEHROTRA & PARTNER,40895024,2557.35,S9 5DH
Department of Health,NHS Sheffield CCG,31/05/2022,C&M-PMS Contract Value,PRC DELEGATED CO-COMMISSIONING,RICHMOND MEDICAL CENTRE,40895028,75308.64,S13 8NA
Department of Health,NHS Sheffield CCG,31/05/2022,C&M-PMS DES Learn Dsblty Hlth Chk,PRC DELEGATED CO-COMMISSIONING,RICHMOND MEDICAL CENTRE,40895028,5320,S13 8NA
Department of Health,NHS Sheffield CCG,31/05/2022,C&M-PMS GP Statutory Levy,PRC DELEGATED CO-COMMISSIONING,RICHMOND MEDICAL CENTRE,40895028,390.64,S13 8NA
Department of Health,NHS Sheffield CCG,31/05/2022,C&M-PMS LONG COVID ES,PRC DELEGATED CO-COMMISSIONING,RICHMOND MEDICAL CENTRE,40895028,1143.16,S13 8NA
Department of Health,NHS Sheffield CCG,31/05/2022,C&M-PMS Out of Hours Opt Outs,PRC DELEGATED CO-COMMISSIONING,RICHMOND MEDICAL CENTRE,40895028,8.42,S13 8NA
Department of Health,NHS Sheffield CCG,31/05/2022,C&M-PMS PCN DES Participation,PRC DELEGATED CO-COMMISSIONING,RICHMOND MEDICAL CENTRE,40895028,2637.56,S13 8NA
Department of Health,NHS Sheffield CCG,31/05/2022,C&M-PMS Prem Notional Rent,PRC DELEGATED CO-COMMISSIONING,RICHMOND MEDICAL CENTRE,40895028,6429.17,S13 8NA
Department of Health,NHS Sheffield CCG,31/05/2022,C&M-PMS Prem Rates,PRC DELEGATED CO-COMMISSIONING,RICHMOND MEDICAL CENTRE,40895028,1098,S13 8NA
Department of Health,NHS Sheffield CCG,31/05/2022,C&M-PMS QOF Aspiration,PRC DELEGATED CO-COMMISSIONING,RICHMOND MEDICAL CENTRE,40895028,8440.67,S13 8NA
Department of Health,NHS Sheffield CCG,31/05/2022,C&M-PMS WEIGHT MANAGEMENT SERVICE,PRC DELEGATED CO-COMMISSIONING,RICHMOND MEDICAL CENTRE,40895028,92,S13 8NA
Department of Health,NHS Sheffield CCG,31/05/2022,C&M-PMS Contract Value,PRC DELEGATED CO-COMMISSIONING,SOUTHEY GREEN MEDICAL CENTRE,40895033,25874.47,S5 7QB
Department of Health,NHS Sheffield CCG,31/05/2022,C&M-PMS GP Statutory Levy,PRC DELEGATED CO-COMMISSIONING,SOUTHEY GREEN MEDICAL CENTRE,40895033,0.04,S5 7QB
Department of Health,NHS Sheffield CCG,31/05/2022,C&M-PMS LONG COVID ES,PRC DELEGATED CO-COMMISSIONING,SOUTHEY GREEN MEDICAL CENTRE,40895033,358.48,S5 7QB
Department of Health,NHS Sheffield CCG,31/05/2022,C&M-PMS Out of Hours Opt Outs,PRC DELEGATED CO-COMMISSIONING,SOUTHEY GREEN MEDICAL CENTRE,40895033,52.36,S5 7QB
Department of Health,NHS Sheffield CCG,31/05/2022,C&M-PMS PCN DES Participation,PRC DELEGATED CO-COMMISSIONING,SOUTHEY GREEN MEDICAL CENTRE,40895033,922.24,S5 7QB
Department of Health,NHS Sheffield CCG,31/05/2022,C&M-PMS Prem Notional Rent,PRC DELEGATED CO-COMMISSIONING,SOUTHEY GREEN MEDICAL CENTRE,40895033,3362.5,S5 7QB
Department of Health,NHS Sheffield CCG,31/05/2022,C&M-PMS QOF Aspiration,PRC DELEGATED CO-COMMISSIONING,SOUTHEY GREEN MEDICAL CENTRE,40895033,2590.63,S5 7QB
Department of Health,NHS Sheffield CCG,31/05/2022,C&M-PMS Contract Value,PRC DELEGATED CO-COMMISSIONING,DOVERCOURT SURGERY,40895037,83794.49,S2 5FX
Department of Health,NHS Sheffield CCG,31/05/2022,C&M-PMS DES Learn Dsblty Hlth Chk,PRC DELEGATED CO-COMMISSIONING,DOVERCOURT SURGERY,40895037,3080,S2 5FX
Department of Health,NHS Sheffield CCG,31/05/2022,C&M-PMS GP Statutory Levy,PRC DELEGATED CO-COMMISSIONING,DOVERCOURT SURGERY,40895037,374.71,S2 5FX
Department of Health,NHS Sheffield CCG,31/05/2022,C&M-PMS LONG COVID ES,PRC DELEGATED CO-COMMISSIONING,DOVERCOURT SURGERY,40895037,1090.08,S2 5FX
Department of Health,NHS Sheffield CCG,31/05/2022,C&M-PMS PCN DES Participation,PRC DELEGATED CO-COMMISSIONING,DOVERCOURT SURGERY,40895037,2868.21,S2 5FX
Department of Health,NHS Sheffield CCG,31/05/2022,C&M-PMS PCO Locum Adop/Pat/Mat,PRC DELEGATED CO-COMMISSIONING,DOVERCOURT SURGERY,40895037,12399.12,S2 5FX
Department of Health,NHS Sheffield CCG,31/05/2022,C&M-PMS PCO Locum Sickness,PRC DELEGATED CO-COMMISSIONING,DOVERCOURT SURGERY,40895037,8757.6,S2 5FX
Department of Health,NHS Sheffield CCG,31/05/2022,C&M-PMS PCO Other,PRC DELEGATED CO-COMMISSIONING,DOVERCOURT SURGERY,40895037,562.2,S2 5FX
Department of Health,NHS Sheffield CCG,31/05/2022,C&M-PMS Prem Actual Rent,PRC DELEGATED CO-COMMISSIONING,DOVERCOURT SURGERY,40895037,23951.01,S2 5FX
Department of Health,NHS Sheffield CCG,31/05/2022,C&M-PMS Prem Notional Rent,PRC DELEGATED CO-COMMISSIONING,DOVERCOURT SURGERY,40895037,1708.33,S2 5FX
Department of Health,NHS Sheffield CCG,31/05/2022,C&M-PMS Prem Rates,PRC DELEGATED CO-COMMISSIONING,DOVERCOURT SURGERY,40895037,26571.75,S2 5FX
Department of Health,NHS Sheffield CCG,31/05/2022,C&M-PMS QOF Aspiration,PRC DELEGATED CO-COMMISSIONING,DOVERCOURT SURGERY,40895037,7832.7,S2 5FX
Department of Health,NHS Sheffield CCG,31/05/2022,C&M-PMS WEIGHT MANAGEMENT SERVICE,PRC DELEGATED CO-COMMISSIONING,DOVERCOURT SURGERY,40895037,586.5,S2 5FX
Department of Health,NHS Sheffield CCG,31/05/2022,C&M-PMS Contract Value,PRC DELEGATED CO-COMMISSIONING,EAST BANK MEDICAL CENTRE,40895041,56254.55,S2 2AG
Department of Health,NHS Sheffield CCG,31/05/2022,C&M-PMS DES Learn Dsblty Hlth Chk,PRC DELEGATED CO-COMMISSIONING,EAST BANK MEDICAL CENTRE,40895041,1400,S2 2AG
Department of Health,NHS Sheffield CCG,31/05/2022,C&M-PMS GP Statutory Levy,PRC DELEGATED CO-COMMISSIONING,EAST BANK MEDICAL CENTRE,40895041,173.46,S2 2AG
Department of Health,NHS Sheffield CCG,31/05/2022,C&M-PMS LONG COVID ES,PRC DELEGATED CO-COMMISSIONING,EAST BANK MEDICAL CENTRE,40895041,760,S2 2AG
Department of Health,NHS Sheffield CCG,31/05/2022,C&M-PMS PCN DES Participation,PRC DELEGATED CO-COMMISSIONING,EAST BANK MEDICAL CENTRE,40895041,1912.48,S2 2AG
Department of Health,NHS Sheffield CCG,31/05/2022,C&M-PMS Prem Notional Rent,PRC DELEGATED CO-COMMISSIONING,EAST BANK MEDICAL CENTRE,40895041,10583.33,S2 2AG
Department of Health,NHS Sheffield CCG,31/05/2022,C&M-PMS Prem Rates,PRC DELEGATED CO-COMMISSIONING,EAST BANK MEDICAL CENTRE,40895041,4515.75,S2 2AG
Department of Health,NHS Sheffield CCG,31/05/2022,C&M-PMS Prem Water Rates,PRC DELEGATED CO-COMMISSIONING,EAST BANK MEDICAL CENTRE,40895041,493.72,S2 2AG
Department of Health,NHS Sheffield CCG,31/05/2022,C&M-PMS QOF Aspiration,PRC DELEGATED CO-COMMISSIONING,EAST BANK MEDICAL CENTRE,40895041,5288.77,S2 2AG
Department of Health,NHS Sheffield CCG,31/05/2022,C&M-PMS WEIGHT MANAGEMENT SERVICE,PRC DELEGATED CO-COMMISSIONING,EAST BANK MEDICAL CENTRE,40895041,149.5,S2 2AG
Department of Health,NHS Sheffield CCG,31/05/2022,C&M-PMS Contract Value,PRC DELEGATED CO-COMMISSIONING,MANOR & PARK GROUP PRACTICE,40895043,74328.61,S2 1QU
Department of Health,NHS Sheffield CCG,31/05/2022,C&M-PMS GP Statutory Levy,PRC DELEGATED CO-COMMISSIONING,MANOR & PARK GROUP PRACTICE,40895043,321.34,S2 1QU
Department of Health,NHS Sheffield CCG,31/05/2022,C&M-PMS LONG COVID ES,PRC DELEGATED CO-COMMISSIONING,MANOR & PARK GROUP PRACTICE,40895043,1056.6,S2 1QU
Department of Health,NHS Sheffield CCG,31/05/2022,C&M-PMS PCN DES Participation,PRC DELEGATED CO-COMMISSIONING,MANOR & PARK GROUP PRACTICE,40895043,2633.45,S2 1QU
Department of Health,NHS Sheffield CCG,31/05/2022,C&M-PMS PCO Other,PRC DELEGATED CO-COMMISSIONING,MANOR & PARK GROUP PRACTICE,40895043,5554,S2 1QU
Department of Health,NHS Sheffield CCG,31/05/2022,C&M-PMS Prem Notional Rent,PRC DELEGATED CO-COMMISSIONING,MANOR & PARK GROUP PRACTICE,40895043,9112.5,S2 1QU
Department of Health,NHS Sheffield CCG,31/05/2022,C&M-PMS Prem Rates,PRC DELEGATED CO-COMMISSIONING,MANOR & PARK GROUP PRACTICE,40895043,444,S2 1QU
Department of Health,NHS Sheffield CCG,31/05/2022,C&M-PMS QOF Aspiration,PRC DELEGATED CO-COMMISSIONING,MANOR & PARK GROUP PRACTICE,40895043,6335.41,S2 1QU
Department of Health,NHS Sheffield CCG,31/05/2022,C&M-PMS Contract Value,PRC DELEGATED CO-COMMISSIONING,BARNSLEY ROAD SURGERY,40895045,21577.28,S5 0QJ
Department of Health,NHS Sheffield CCG,31/05/2022,C&M-PMS GP Statutory Levy,PRC DELEGATED CO-COMMISSIONING,BARNSLEY ROAD SURGERY,40895045,257.5,S5 0QJ
Department of Health,NHS Sheffield CCG,31/05/2022,C&M-PMS LONG COVID ES,PRC DELEGATED CO-COMMISSIONING,BARNSLEY ROAD SURGERY,40895045,306.9,S5 0QJ
Department of Health,NHS Sheffield CCG,31/05/2022,C&M-PMS PCN DES Participation,PRC DELEGATED CO-COMMISSIONING,BARNSLEY ROAD SURGERY,40895045,758.85,S5 0QJ
Department of Health,NHS Sheffield CCG,31/05/2022,C&M-PMS Prem Notional Rent,PRC DELEGATED CO-COMMISSIONING,BARNSLEY ROAD SURGERY,40895045,2831.25,S5 0QJ
Department of Health,NHS Sheffield CCG,31/05/2022,C&M-PMS QOF Aspiration,PRC DELEGATED CO-COMMISSIONING,BARNSLEY ROAD SURGERY,40895045,2164.71,S5 0QJ
Department of Health,NHS Sheffield CCG,31/05/2022,C&M-PMS WEIGHT MANAGEMENT SERVICE,PRC DELEGATED CO-COMMISSIONING,BARNSLEY ROAD SURGERY,40895045,207,S5 0QJ
Department of Health,NHS Sheffield CCG,31/05/2022,C&M-PCN-PMS DES Leadership Payment,PRC DELEGATED CO-COMMISSIONING,VALLEY MEDICAL CENTRE,40895047,1176.07,S36 1BX
Department of Health,NHS Sheffield CCG,31/05/2022,C&M-PMS Contract Value,PRC DELEGATED CO-COMMISSIONING,VALLEY MEDICAL CENTRE,40895047,85965.93,S36 1BX
Department of Health,NHS Sheffield CCG,31/05/2022,C&M-PMS DES Extended Hours Access,PRC DELEGATED CO-COMMISSIONING,VALLEY MEDICAL CENTRE,40895047,2470.92,S36 1BX
Department of Health,NHS Sheffield CCG,31/05/2022,C&M-PMS DES Learn Dsblty Hlth Chk,PRC DELEGATED CO-COMMISSIONING,VALLEY MEDICAL CENTRE,40895047,1400,S36 1BX
Department of Health,NHS Sheffield CCG,31/05/2022,C&M-PMS GP Statutory Levy,PRC DELEGATED CO-COMMISSIONING,VALLEY MEDICAL CENTRE,40895047,269.96,S36 1BX
Department of Health,NHS Sheffield CCG,31/05/2022,C&M-PMS LONG COVID ES,PRC DELEGATED CO-COMMISSIONING,VALLEY MEDICAL CENTRE,40895047,1192.63,S36 1BX
Department of Health,NHS Sheffield CCG,31/05/2022,C&M-PMS Out of Hours Opt Outs,PRC DELEGATED CO-COMMISSIONING,VALLEY MEDICAL CENTRE,40895047,25.72,S36 1BX
Department of Health,NHS Sheffield CCG,31/05/2022,C&M-PMS PCN DES Clinical Director,PRC DELEGATED CO-COMMISSIONING,VALLEY MEDICAL CENTRE,40895047,1262.91,S36 1BX
Department of Health,NHS Sheffield CCG,31/05/2022,C&M-PMS PCN DES PCN support,PRC DELEGATED CO-COMMISSIONING,VALLEY MEDICAL CENTRE,40895047,2573.88,S36 1BX
Department of Health,NHS Sheffield CCG,31/05/2022,C&M-PMS PCN DES Participation,PRC DELEGATED CO-COMMISSIONING,VALLEY MEDICAL CENTRE,40895047,3028.75,S36 1BX
Department of Health,NHS Sheffield CCG,31/05/2022,C&M-PMS PCO Other,PRC DELEGATED CO-COMMISSIONING,VALLEY MEDICAL CENTRE,40895047,5942,S36 1BX
Department of Health,NHS Sheffield CCG,31/05/2022,C&M-PMS Prem Rates,PRC DELEGATED CO-COMMISSIONING,VALLEY MEDICAL CENTRE,40895047,1248,S36 1BX
Department of Health,NHS Sheffield CCG,31/05/2022,C&M-PMS QOF Aspiration,PRC DELEGATED CO-COMMISSIONING,VALLEY MEDICAL CENTRE,40895047,9753.16,S36 1BX
Department of Health,NHS Sheffield CCG,31/05/2022,C&M-PMS WEIGHT MANAGEMENT SERVICE,PRC DELEGATED CO-COMMISSIONING,VALLEY MEDICAL CENTRE,40895047,943,S36 1BX
Department of Health,NHS Sheffield CCG,31/05/2022,C&M-PMS Contract Value,PRC DELEGATED CO-COMMISSIONING,HACKENTHORPE MEDICAL CENTRE,40895049,52092.53,S12 4LA
Department of Health,NHS Sheffield CCG,31/05/2022,C&M-PMS DES Learn Dsblty Hlth Chk,PRC DELEGATED CO-COMMISSIONING,HACKENTHORPE MEDICAL CENTRE,40895049,280,S12 4LA
Department of Health,NHS Sheffield CCG,31/05/2022,C&M-PMS GP Statutory Levy,PRC DELEGATED CO-COMMISSIONING,HACKENTHORPE MEDICAL CENTRE,40895049,253.44,S12 4LA
Department of Health,NHS Sheffield CCG,31/05/2022,C&M-PMS LONG COVID ES,PRC DELEGATED CO-COMMISSIONING,HACKENTHORPE MEDICAL CENTRE,40895049,835.14,S12 4LA
Department of Health,NHS Sheffield CCG,31/05/2022,C&M-PMS PCN DES Participation,PRC DELEGATED CO-COMMISSIONING,HACKENTHORPE MEDICAL CENTRE,40895049,1839.9,S12 4LA
Department of Health,NHS Sheffield CCG,31/05/2022,C&M-PMS PCO Locum Adop/Pat/Mat,PRC DELEGATED CO-COMMISSIONING,HACKENTHORPE MEDICAL CENTRE,40895049,1228.21,S12 4LA
Department of Health,NHS Sheffield CCG,31/05/2022,C&M-PMS PCO Other,PRC DELEGATED CO-COMMISSIONING,HACKENTHORPE MEDICAL CENTRE,40895049,863,S12 4LA
Department of Health,NHS Sheffield CCG,31/05/2022,C&M-PMS Prem Notional Rent,PRC DELEGATED CO-COMMISSIONING,HACKENTHORPE MEDICAL CENTRE,40895049,5325,S12 4LA
Department of Health,NHS Sheffield CCG,31/05/2022,C&M-PMS Prem Rates,PRC DELEGATED CO-COMMISSIONING,HACKENTHORPE MEDICAL CENTRE,40895049,861,S12 4LA
Department of Health,NHS Sheffield CCG,31/05/2022,C&M-PMS Prem Water Rates,PRC DELEGATED CO-COMMISSIONING,HACKENTHORPE MEDICAL CENTRE,40895049,52.32,S12 4LA
Department of Health,NHS Sheffield CCG,31/05/2022,C&M-PMS QOF Aspiration,PRC DELEGATED CO-COMMISSIONING,HACKENTHORPE MEDICAL CENTRE,40895049,6861.61,S12 4LA
Department of Health,NHS Sheffield CCG,31/05/2022,C&M-PMS WEIGHT MANAGEMENT SERVICE,PRC DELEGATED CO-COMMISSIONING,HACKENTHORPE MEDICAL CENTRE,40895049,69,S12 4LA
Department of Health,NHS Sheffield CCG,31/05/2022,C&M-PMS Contract Value,PRC DELEGATED CO-COMMISSIONING,SHEFFIELD MEDICAL CENTRE,40895051,20356.04,S3 9LB
Department of Health,NHS Sheffield CCG,31/05/2022,C&M-PMS DES Learn Dsblty Hlth Chk,PRC DELEGATED CO-COMMISSIONING,SHEFFIELD MEDICAL CENTRE,40895051,840,S3 9LB
Department of Health,NHS Sheffield CCG,31/05/2022,C&M-PMS GP Statutory Levy,PRC DELEGATED CO-COMMISSIONING,SHEFFIELD MEDICAL CENTRE,40895051,195.93,S3 9LB
Department of Health,NHS Sheffield CCG,31/05/2022,C&M-PMS LONG COVID ES,PRC DELEGATED CO-COMMISSIONING,SHEFFIELD MEDICAL CENTRE,40895051,247.38,S3 9LB
Department of Health,NHS Sheffield CCG,31/05/2022,C&M-PMS PCN DES Participation,PRC DELEGATED CO-COMMISSIONING,SHEFFIELD MEDICAL CENTRE,40895051,638.42,S3 9LB
Department of Health,NHS Sheffield CCG,31/05/2022,C&M-PMS Prem Notional Rent,PRC DELEGATED CO-COMMISSIONING,SHEFFIELD MEDICAL CENTRE,40895051,2183.33,S3 9LB
Department of Health,NHS Sheffield CCG,31/05/2022,C&M-PMS Prem Rates,PRC DELEGATED CO-COMMISSIONING,SHEFFIELD MEDICAL CENTRE,40895051,294,S3 9LB
Department of Health,NHS Sheffield CCG,31/05/2022,C&M-PMS QOF Aspiration,PRC DELEGATED CO-COMMISSIONING,SHEFFIELD MEDICAL CENTRE,40895051,1608.96,S3 9LB
Department of Health,NHS Sheffield CCG,31/05/2022,C&M-PMS WEIGHT MANAGEMENT SERVICE,PRC DELEGATED CO-COMMISSIONING,SHEFFIELD MEDICAL CENTRE,40895051,34.5,S3 9LB
Department of Health,NHS Sheffield CCG,31/05/2022,C&M-PMS Contract Value,PRC DELEGATED CO-COMMISSIONING,UNIVERSITY HEALTH SERVICE,40895053,-18977.68,S3 7QP
Department of Health,NHS Sheffield CCG,31/05/2022,C&M-PMS GP Statutory Levy,PRC DELEGATED CO-COMMISSIONING,UNIVERSITY HEALTH SERVICE,40895053,-2578.74,S3 7QP
Department of Health,NHS Sheffield CCG,31/05/2022,C&M-PMS Out of Hours Opt Outs,PRC DELEGATED CO-COMMISSIONING,UNIVERSITY HEALTH SERVICE,40895053,-9819.65,S3 7QP
Department of Health,NHS Sheffield CCG,31/05/2022,C&M-PMS Contract Value,PRC DELEGATED CO-COMMISSIONING,OWLTHORPE MEDICAL CENTRE,40895054,35007.63,S20 6PD
Department of Health,NHS Sheffield CCG,31/05/2022,C&M-PMS GP Statutory Levy,PRC DELEGATED CO-COMMISSIONING,OWLTHORPE MEDICAL CENTRE,40895054,284.27,S20 6PD
Department of Health,NHS Sheffield CCG,31/05/2022,C&M-PMS LONG COVID ES,PRC DELEGATED CO-COMMISSIONING,OWLTHORPE MEDICAL CENTRE,40895054,537.79,S20 6PD
Department of Health,NHS Sheffield CCG,31/05/2022,C&M-PMS Out of Hours Opt Outs,PRC DELEGATED CO-COMMISSIONING,OWLTHORPE MEDICAL CENTRE,40895054,18.54,S20 6PD
Department of Health,NHS Sheffield CCG,31/05/2022,C&M-PMS PCN DES Participation,PRC DELEGATED CO-COMMISSIONING,OWLTHORPE MEDICAL CENTRE,40895054,1238.04,S20 6PD
Department of Health,NHS Sheffield CCG,31/05/2022,C&M-PMS PCO Locum Adop/Pat/Mat,PRC DELEGATED CO-COMMISSIONING,OWLTHORPE MEDICAL CENTRE,40895054,6565.24,S20 6PD
Department of Health,NHS Sheffield CCG,31/05/2022,C&M-PMS Prem Actual Rent,PRC DELEGATED CO-COMMISSIONING,OWLTHORPE MEDICAL CENTRE,40895054,7539.58,S20 6PD
Department of Health,NHS Sheffield CCG,31/05/2022,C&M-PMS Prem Rates,PRC DELEGATED CO-COMMISSIONING,OWLTHORPE MEDICAL CENTRE,40895054,1023,S20 6PD
Department of Health,NHS Sheffield CCG,31/05/2022,C&M-PMS QOF Aspiration,PRC DELEGATED CO-COMMISSIONING,OWLTHORPE MEDICAL CENTRE,40895054,3996.43,S20 6PD
Department of Health,NHS Sheffield CCG,31/05/2022,C&M-PMS WEIGHT MANAGEMENT SERVICE,PRC DELEGATED CO-COMMISSIONING,OWLTHORPE MEDICAL CENTRE,40895054,80.5,S20 6PD
Department of Health,NHS Sheffield CCG,31/05/2022,C&M-APMS Contract Value,PRC DELEGATED CO-COMMISSIONING,CLOVER CITY PRACTICE,40895056,102.1,S9 4QH
Department of Health,NHS Sheffield CCG,31/05/2022,C&M-APMS Contract Value,PRC DELEGATED CO-COMMISSIONING,CLOVER CITY PRACTICE,40895056,34569.4,S9 4QH
Department of Health,NHS Sheffield CCG,31/05/2022,C&M-APMS LONG COVID ES,PRC DELEGATED CO-COMMISSIONING,CLOVER CITY PRACTICE,40895056,622.11,S9 4QH
Department of Health,NHS Sheffield CCG,31/05/2022,C&M-APMS PCN DES Participation,PRC DELEGATED CO-COMMISSIONING,CLOVER CITY PRACTICE,40895056,1198.78,S9 4QH
Department of Health,NHS Sheffield CCG,31/05/2022,C&M-APMS QOF Aspiration,PRC DELEGATED CO-COMMISSIONING,CLOVER CITY PRACTICE,40895056,1976.05,S9 4QH
Department of Health,NHS Sheffield CCG,31/05/2022,C&M-APMS WEIGHT MANAGEMENT SERVICE,PRC DELEGATED CO-COMMISSIONING,CLOVER CITY PRACTICE,40895056,57.5,S9 4QH
Department of Health,NHS Sheffield CCG,31/05/2022,C&M-PMS GP Statutory Levy,PRC DELEGATED CO-COMMISSIONING,CLOVER CITY PRACTICE,40895056,359.31,S9 4QH
Department of Health,NHS Sheffield CCG,31/05/2022,C&M-PMS Contract Value,PRC DELEGATED CO-COMMISSIONING,PORTER BROOK MEDICAL CENTRE,40918784,188767.98,S11 8HN
Department of Health,NHS Sheffield CCG,31/05/2022,C&M-PMS DES Learn Dsblty Hlth Chk,PRC DELEGATED CO-COMMISSIONING,PORTER BROOK MEDICAL CENTRE,40918784,2380,S11 8HN
Department of Health,NHS Sheffield CCG,31/05/2022,C&M-PMS GP Statutory Levy,PRC DELEGATED CO-COMMISSIONING,PORTER BROOK MEDICAL CENTRE,40918784,439.46,S11 8HN
Department of Health,NHS Sheffield CCG,31/05/2022,C&M-PMS LONG COVID ES,PRC DELEGATED CO-COMMISSIONING,PORTER BROOK MEDICAL CENTRE,40918784,3576.9,S11 8HN
Department of Health,NHS Sheffield CCG,31/05/2022,C&M-PMS PCN DES Participation,PRC DELEGATED CO-COMMISSIONING,PORTER BROOK MEDICAL CENTRE,40918784,6140.43,S11 8HN
Department of Health,NHS Sheffield CCG,31/05/2022,C&M-PMS Prem Actual Rent,PRC DELEGATED CO-COMMISSIONING,PORTER BROOK MEDICAL CENTRE,40918784,1666.67,S11 8HN
Department of Health,NHS Sheffield CCG,31/05/2022,C&M-PMS Prem Notional Rent,PRC DELEGATED CO-COMMISSIONING,PORTER BROOK MEDICAL CENTRE,40918784,9933.33,S11 8HN
Department of Health,NHS Sheffield CCG,31/05/2022,C&M-PMS Prem Rates,PRC DELEGATED CO-COMMISSIONING,PORTER BROOK MEDICAL CENTRE,40918784,2021,S11 8HN
Department of Health,NHS Sheffield CCG,31/05/2022,C&M-PMS QOF Aspiration,PRC DELEGATED CO-COMMISSIONING,PORTER BROOK MEDICAL CENTRE,40918784,11142.93,S11 8HN
Department of Health,NHS Sheffield CCG,31/05/2022,C&M-PMS WEIGHT MANAGEMENT SERVICE,PRC DELEGATED CO-COMMISSIONING,PORTER BROOK MEDICAL CENTRE,40918784,184,S11 8HN
Department of Health,NHS Sheffield CCG,31/05/2022,C&M- PCN DES CARE COORDINATOR,PRC DELEGATED CO-COMMISSIONING,FORGE HEALTH GROUP,40918785,13708.26,S3 9DL
Department of Health,NHS Sheffield CCG,31/05/2022,C&M-PCN DES Adult Mental Health Practitioner,PRC DELEGATED CO-COMMISSIONING,FORGE HEALTH GROUP,40918785,6792.75,S3 9DL
Department of Health,NHS Sheffield CCG,31/05/2022,C&M-PCN DES PHARMACY TECHNICIANS,PRC DELEGATED CO-COMMISSIONING,FORGE HEALTH GROUP,40918785,29245.6,S3 9DL
Department of Health,NHS Sheffield CCG,31/05/2022,C&M-PCN-PMS DES Leadership Payment,PRC DELEGATED CO-COMMISSIONING,FORGE HEALTH GROUP,40918785,3614.41,S3 9DL
Department of Health,NHS Sheffield CCG,31/05/2022,C&M-PMS C&M-APMS PCN DES Physician Assoc,PRC DELEGATED CO-COMMISSIONING,FORGE HEALTH GROUP,40918785,20953.98,S3 9DL
Department of Health,NHS Sheffield CCG,31/05/2022,C&M-PMS Contract Value,PRC DELEGATED CO-COMMISSIONING,FORGE HEALTH GROUP,40918785,132993.12,S3 9DL
Department of Health,NHS Sheffield CCG,31/05/2022,C&M-PMS DES Extended Hours Access,PRC DELEGATED CO-COMMISSIONING,FORGE HEALTH GROUP,40918785,6951.48,S3 9DL
Department of Health,NHS Sheffield CCG,31/05/2022,C&M-PMS DES Learn Dsblty Hlth Chk,PRC DELEGATED CO-COMMISSIONING,FORGE HEALTH GROUP,40918785,8820,S3 9DL
Department of Health,NHS Sheffield CCG,31/05/2022,C&M-PMS GP Statutory Levy,PRC DELEGATED CO-COMMISSIONING,FORGE HEALTH GROUP,40918785,178.64,S3 9DL
Department of Health,NHS Sheffield CCG,31/05/2022,C&M-PMS LONG COVID ES,PRC DELEGATED CO-COMMISSIONING,FORGE HEALTH GROUP,40918785,1830.61,S3 9DL
Department of Health,NHS Sheffield CCG,31/05/2022,C&M-PMS PCN DES Clin Pharmacist,PRC DELEGATED CO-COMMISSIONING,FORGE HEALTH GROUP,40918785,136122.72,S3 9DL
Department of Health,NHS Sheffield CCG,31/05/2022,C&M-PMS PCN DES Clinical Director,PRC DELEGATED CO-COMMISSIONING,FORGE HEALTH GROUP,40918785,3552.98,S3 9DL
Department of Health,NHS Sheffield CCG,31/05/2022,C&M-PMS PCN DES PCN support,PRC DELEGATED CO-COMMISSIONING,FORGE HEALTH GROUP,40918785,7241.13,S3 9DL
Department of Health,NHS Sheffield CCG,31/05/2022,C&M-PMS PCN DES Participation,PRC DELEGATED CO-COMMISSIONING,FORGE HEALTH GROUP,40918785,4614.24,S3 9DL
Department of Health,NHS Sheffield CCG,31/05/2022,C&M-PMS PCN DES Physiotherapist,PRC DELEGATED CO-COMMISSIONING,FORGE HEALTH GROUP,40918785,39617.94,S3 9DL
Department of Health,NHS Sheffield CCG,31/05/2022,C&M-PMS PCN DES Soc Prescribing,PRC DELEGATED CO-COMMISSIONING,FORGE HEALTH GROUP,40918785,70700.34,S3 9DL
Department of Health,NHS Sheffield CCG,31/05/2022,C&M-PMS PCO Locum Sickness,PRC DELEGATED CO-COMMISSIONING,FORGE HEALTH GROUP,40918785,9856.08,S3 9DL
Department of Health,NHS Sheffield CCG,31/05/2022,C&M-PMS Prem Healthcentre Rent,PRC DELEGATED CO-COMMISSIONING,FORGE HEALTH GROUP,40918785,35542.67,S3 9DL
Department of Health,NHS Sheffield CCG,31/05/2022,C&M-PMS Prem Notional Rent,PRC DELEGATED CO-COMMISSIONING,FORGE HEALTH GROUP,40918785,9891.67,S3 9DL
Department of Health,NHS Sheffield CCG,31/05/2022,C&M-PMS QOF Aspiration,PRC DELEGATED CO-COMMISSIONING,FORGE HEALTH GROUP,40918785,11673.25,S3 9DL
Department of Health,NHS Sheffield CCG,31/05/2022,C&M-PMS WEIGHT MANAGEMENT SERVICE,PRC DELEGATED CO-COMMISSIONING,FORGE HEALTH GROUP,40918785,34.5,S3 9DL
Department of Health,NHS Sheffield CCG,31/05/2022,C&M-PMS Contract Value,PRC DELEGATED CO-COMMISSIONING,FOXHILL MEDICAL CENTRE SHEFFIELD,40918786,54336.83,S6 1GA
Department of Health,NHS Sheffield CCG,31/05/2022,C&M-PMS DES Learn Dsblty Hlth Chk,PRC DELEGATED CO-COMMISSIONING,FOXHILL MEDICAL CENTRE SHEFFIELD,40918786,140,S6 1GA
Department of Health,NHS Sheffield CCG,31/05/2022,C&M-PMS GP Statutory Levy,PRC DELEGATED CO-COMMISSIONING,FOXHILL MEDICAL CENTRE SHEFFIELD,40918786,1044.65,S6 1GA
Department of Health,NHS Sheffield CCG,31/05/2022,C&M-PMS LONG COVID ES,PRC DELEGATED CO-COMMISSIONING,FOXHILL MEDICAL CENTRE SHEFFIELD,40918786,743.26,S6 1GA
Department of Health,NHS Sheffield CCG,31/05/2022,C&M-PMS PCN DES Participation,PRC DELEGATED CO-COMMISSIONING,FOXHILL MEDICAL CENTRE SHEFFIELD,40918786,1904.74,S6 1GA
Department of Health,NHS Sheffield CCG,31/05/2022,C&M-PMS Prem Healthcentre Rent,PRC DELEGATED CO-COMMISSIONING,FOXHILL MEDICAL CENTRE SHEFFIELD,40918786,48823.57,S6 1GA
Department of Health,NHS Sheffield CCG,31/05/2022,C&M-PMS QOF Aspiration,PRC DELEGATED CO-COMMISSIONING,FOXHILL MEDICAL CENTRE SHEFFIELD,40918786,5814.2,S6 1GA
Department of Health,NHS Sheffield CCG,31/05/2022,C&M-PMS WEIGHT MANAGEMENT SERVICE,PRC DELEGATED CO-COMMISSIONING,FOXHILL MEDICAL CENTRE SHEFFIELD,40918786,34.5,S6 1GA
Department of Health,NHS Sheffield CCG,31/05/2022,C&M-PMS Contract Value,PRC DELEGATED CO-COMMISSIONING,BIRLEY HEALTH CENTRE,40918787,72068.06,S12 3BP
Department of Health,NHS Sheffield CCG,31/05/2022,C&M-PMS DES Learn Dsblty Hlth Chk,PRC DELEGATED CO-COMMISSIONING,BIRLEY HEALTH CENTRE,40918787,3780,S12 3BP
Department of Health,NHS Sheffield CCG,31/05/2022,C&M-PMS GP Statutory Levy,PRC DELEGATED CO-COMMISSIONING,BIRLEY HEALTH CENTRE,40918787,290.05,S12 3BP
Department of Health,NHS Sheffield CCG,31/05/2022,C&M-PMS LONG COVID ES,PRC DELEGATED CO-COMMISSIONING,BIRLEY HEALTH CENTRE,40918787,1062.8,S12 3BP
Department of Health,NHS Sheffield CCG,31/05/2022,C&M-PMS PCN DES Participation,PRC DELEGATED CO-COMMISSIONING,BIRLEY HEALTH CENTRE,40918787,2453.05,S12 3BP
Department of Health,NHS Sheffield CCG,31/05/2022,C&M-PMS PCO Other,PRC DELEGATED CO-COMMISSIONING,BIRLEY HEALTH CENTRE,40918787,5393,S12 3BP
Department of Health,NHS Sheffield CCG,31/05/2022,C&M-PMS Prem Notional Rent,PRC DELEGATED CO-COMMISSIONING,BIRLEY HEALTH CENTRE,40918787,16974.83,S12 3BP
Department of Health,NHS Sheffield CCG,31/05/2022,C&M-PMS Prem Water Rates,PRC DELEGATED CO-COMMISSIONING,BIRLEY HEALTH CENTRE,40918787,503.89,S12 3BP
Department of Health,NHS Sheffield CCG,31/05/2022,C&M-PMS QOF Aspiration,PRC DELEGATED CO-COMMISSIONING,BIRLEY HEALTH CENTRE,40918787,8115.98,S12 3BP
Department of Health,NHS Sheffield CCG,31/05/2022,C&M-PMS WEIGHT MANAGEMENT SERVICE,PRC DELEGATED CO-COMMISSIONING,BIRLEY HEALTH CENTRE,40918787,80.5,S12 3BP
Department of Health,NHS Sheffield CCG,31/05/2022,C&M-PMS Contract Value,PRC DELEGATED CO-COMMISSIONING,UPWELL STREET SURGERY,40918788,40914.54,S4 8AN
Department of Health,NHS Sheffield CCG,31/05/2022,C&M-PMS DES Learn Dsblty Hlth Chk,PRC DELEGATED CO-COMMISSIONING,UPWELL STREET SURGERY,40918788,840,S4 8AN
Department of Health,NHS Sheffield CCG,31/05/2022,C&M-PMS GP Statutory Levy,PRC DELEGATED CO-COMMISSIONING,UPWELL STREET SURGERY,40918788,457.84,S4 8AN
Department of Health,NHS Sheffield CCG,31/05/2022,C&M-PMS LONG COVID ES,PRC DELEGATED CO-COMMISSIONING,UPWELL STREET SURGERY,40918788,575.24,S4 8AN
Department of Health,NHS Sheffield CCG,31/05/2022,C&M-PMS PCN DES Participation,PRC DELEGATED CO-COMMISSIONING,UPWELL STREET SURGERY,40918788,1371.2,S4 8AN
Department of Health,NHS Sheffield CCG,31/05/2022,C&M-PMS Prem Notional Rent,PRC DELEGATED CO-COMMISSIONING,UPWELL STREET SURGERY,40918788,8552.5,S4 8AN
Department of Health,NHS Sheffield CCG,31/05/2022,C&M-PMS Prem Rates,PRC DELEGATED CO-COMMISSIONING,UPWELL STREET SURGERY,40918788,998,S4 8AN
Department of Health,NHS Sheffield CCG,31/05/2022,C&M-PMS QOF Aspiration,PRC DELEGATED CO-COMMISSIONING,UPWELL STREET SURGERY,40918788,4008.95,S4 8AN
Department of Health,NHS Sheffield CCG,31/05/2022,C&M-PMS WEIGHT MANAGEMENT SERVICE,PRC DELEGATED CO-COMMISSIONING,UPWELL STREET SURGERY,40918788,126.5,S4 8AN
Department of Health,NHS Sheffield CCG,31/05/2022,C&M-PMS Contract Value,PRC DELEGATED CO-COMMISSIONING,WINCOBANK MEDICAL CENTRE,40918789,68238.09,S9 1DJ
Department of Health,NHS Sheffield CCG,31/05/2022,C&M-PMS DES Learn Dsblty Hlth Chk,PRC DELEGATED CO-COMMISSIONING,WINCOBANK MEDICAL CENTRE,40918789,5040,S9 1DJ
Department of Health,NHS Sheffield CCG,31/05/2022,C&M-PMS GP Statutory Levy,PRC DELEGATED CO-COMMISSIONING,WINCOBANK MEDICAL CENTRE,40918789,482.86,S9 1DJ
Department of Health,NHS Sheffield CCG,31/05/2022,C&M-PMS LONG COVID ES,PRC DELEGATED CO-COMMISSIONING,WINCOBANK MEDICAL CENTRE,40918789,949.84,S9 1DJ
Department of Health,NHS Sheffield CCG,31/05/2022,C&M-PMS Out of Hours Opt Outs,PRC DELEGATED CO-COMMISSIONING,WINCOBANK MEDICAL CENTRE,40918789,38.9,S9 1DJ
Department of Health,NHS Sheffield CCG,31/05/2022,C&M-PMS PCN DES Participation,PRC DELEGATED CO-COMMISSIONING,WINCOBANK MEDICAL CENTRE,40918789,2383.43,S9 1DJ
Department of Health,NHS Sheffield CCG,31/05/2022,C&M-PMS Prem Healthcentre Rent,PRC DELEGATED CO-COMMISSIONING,WINCOBANK MEDICAL CENTRE,40918789,47262.38,S9 1DJ
Department of Health,NHS Sheffield CCG,31/05/2022,C&M-PMS QOF Aspiration,PRC DELEGATED CO-COMMISSIONING,WINCOBANK MEDICAL CENTRE,40918789,6681.9,S9 1DJ
Department of Health,NHS Sheffield CCG,31/05/2022,C&M-PMS WEIGHT MANAGEMENT SERVICE,PRC DELEGATED CO-COMMISSIONING,WINCOBANK MEDICAL CENTRE,40918789,115,S9 1DJ
Department of Health,NHS Sheffield CCG,31/05/2022,C&M- PCN DES Nursing Associate,PRC DELEGATED CO-COMMISSIONING,UNIVERSITY HEALTH SERVICE,40918790,2477.16,S3 7QP
Department of Health,NHS Sheffield CCG,31/05/2022,C&M-PCN DES Adult Mental Health Practitioner,PRC DELEGATED CO-COMMISSIONING,UNIVERSITY HEALTH SERVICE,40918790,1826.01,S3 7QP
Department of Health,NHS Sheffield CCG,31/05/2022,C&M-PCN DES Trainee Nursing Associate,PRC DELEGATED CO-COMMISSIONING,UNIVERSITY HEALTH SERVICE,40918790,1920.67,S3 7QP
Department of Health,NHS Sheffield CCG,31/05/2022,C&M-PCN-PMS DES Leadership Payment,PRC DELEGATED CO-COMMISSIONING,UNIVERSITY HEALTH SERVICE,40918790,1679.29,S3 7QP
Department of Health,NHS Sheffield CCG,31/05/2022,C&M-PMS Contract Value,PRC DELEGATED CO-COMMISSIONING,UNIVERSITY HEALTH SERVICE,40918790,206954.13,S3 7QP
Department of Health,NHS Sheffield CCG,31/05/2022,C&M-PMS DES Extended Hours Access,PRC DELEGATED CO-COMMISSIONING,UNIVERSITY HEALTH SERVICE,40918790,4733.88,S3 7QP
Department of Health,NHS Sheffield CCG,31/05/2022,C&M-PMS GP Statutory Levy,PRC DELEGATED CO-COMMISSIONING,UNIVERSITY HEALTH SERVICE,40918790,132.27,S3 7QP
Department of Health,NHS Sheffield CCG,31/05/2022,C&M-PMS LONG COVID ES,PRC DELEGATED CO-COMMISSIONING,UNIVERSITY HEALTH SERVICE,40918790,5038.86,S3 7QP
Department of Health,NHS Sheffield CCG,31/05/2022,C&M-PMS Out of Hours Opt Outs,PRC DELEGATED CO-COMMISSIONING,UNIVERSITY HEALTH SERVICE,40918790,901.44,S3 7QP
Department of Health,NHS Sheffield CCG,31/05/2022,C&M-PMS PCN DES Clin Pharmacist,PRC DELEGATED CO-COMMISSIONING,UNIVERSITY HEALTH SERVICE,40918790,9357.15,S3 7QP
Department of Health,NHS Sheffield CCG,31/05/2022,C&M-PMS PCN DES Clinical Director,PRC DELEGATED CO-COMMISSIONING,UNIVERSITY HEALTH SERVICE,40918790,2419.54,S3 7QP
Department of Health,NHS Sheffield CCG,31/05/2022,C&M-PMS PCN DES PCN support,PRC DELEGATED CO-COMMISSIONING,UNIVERSITY HEALTH SERVICE,40918790,4931.13,S3 7QP
Department of Health,NHS Sheffield CCG,31/05/2022,C&M-PMS PCN DES Participation,PRC DELEGATED CO-COMMISSIONING,UNIVERSITY HEALTH SERVICE,40918790,7300.67,S3 7QP
Department of Health,NHS Sheffield CCG,31/05/2022,C&M-PMS PCN DES Physiotherapist,PRC DELEGATED CO-COMMISSIONING,UNIVERSITY HEALTH SERVICE,40918790,1452.3,S3 7QP
Department of Health,NHS Sheffield CCG,31/05/2022,C&M-PMS PCN DES Soc Prescribing,PRC DELEGATED CO-COMMISSIONING,UNIVERSITY HEALTH SERVICE,40918790,2957.33,S3 7QP
Department of Health,NHS Sheffield CCG,31/05/2022,C&M-PMS Prem Notional Rent,PRC DELEGATED CO-COMMISSIONING,UNIVERSITY HEALTH SERVICE,40918790,15833.33,S3 7QP
Department of Health,NHS Sheffield CCG,31/05/2022,C&M-PMS QOF Aspiration,PRC DELEGATED CO-COMMISSIONING,UNIVERSITY HEALTH SERVICE,40918790,7403.76,S3 7QP
Department of Health,NHS Sheffield CCG,31/05/2022,C&M-PMS WEIGHT MANAGEMENT SERVICE,PRC DELEGATED CO-COMMISSIONING,UNIVERSITY HEALTH SERVICE,40918790,115,S3 7QP
Department of Health,NHS Sheffield CCG,31/05/2022,Cont Care- Prior Year Payments,CHC ADULT FULLY FUNDED,SOUTH YORKSHIRE HOUSING ASSOCIATION LTD,40920690,51872.98,S1 4HF
Department of Health,NHS Sheffield CCG,31/05/2022,Hcare Srv Rec Fdtn Trust-Contract Baseline,ACUTE COMMISSIONING,BARNSLEY HOSPITAL NHS FOUNDATION TRUST,40920745,137416.65,S75 2EP
Department of Health,NHS Sheffield CCG,31/05/2022,Hcare Srv Rec Fdtn Trust-Contract Baseline,ACUTE COMMISSIONING,CHESTERFIELD ROYAL HOSPITAL NHS FOUNDATION TRUST,40920751,391090.89,S44 5BL
Department of Health,NHS Sheffield CCG,31/05/2022,Hcare Srv Rec Fdtn Trust-Contract Baseline,ACUTE COMMISSIONING,DONCASTER AND BASSETLAW HOSPITALS NHS FOUNDATION TRUST,40920756,83500.03,WF3 1WE
Department of Health,NHS Sheffield CCG,31/05/2022,Hcare Srv Rec Fdtn Trust-Contract Baseline,ACUTE CHILDRENS SERVICES,SHEFFIELD CHILDRENS NHS FOUNDATION TRUST,40920766,5373128.63,S10 2TH
Department of Health,NHS Sheffield CCG,31/05/2022,Hcare Srv Rec Fdtn Trust-Contract Baseline,MENTAL HEALTH CONTRACTS,SHEFFIELD HEALTH & SOCIAL CARE NHS FOUNDATION TRUST,40920777,8785780.44,S10 3TH
Department of Health,NHS Sheffield CCG,31/05/2022,Hcare Srv Rec Fdtn Trust-Contract Baseline,ACUTE COMMISSIONING,SHEFFIELD TEACHING HOSPITALS NHS FOUNDATION TRUST,40920783,44966483.38,S5 7AU
Department of Health,NHS Sheffield CCG,31/05/2022,Hcare Srv Rec NHS Trust-Contract Baseline,ACUTE COMMISSIONING,LEEDS TEACHING HOSPITALS NHS TRUST,40920788,50703.22,LS9 7TF
Department of Health,NHS Sheffield CCG,31/05/2022,Hcare Srv Rec Fdtn Trust-Contract Baseline,ACUTE COMMISSIONING,ROTHERHAM NHS FOUNDATION TRUST,40920793,649750.02,S60 2UD
Department of Health,NHS Sheffield CCG,31/05/2022,Hcare Srv Rec NHS Trust-Contract Baseline,AMBULANCE SERVICES,YORKSHIRE AMBULANCE SERVICE NHS TRUST,40920797,2558843.57,WF2 0XQ
Department of Health,NHS Sheffield CCG,31/05/2022,Cont Care-Learning Disab(<65),CHC ADULT FULLY FUNDED,RUSKIN MILL TRUST LTD,40926236,29876.14,GL6 0LA
Department of Health,NHS Sheffield CCG,31/05/2022,Cont Care-Funded Nursing Care Allow,FUNDED NURSING CARE,COUNTRY COURT CARE LTD,40938636,28059.6,S5 6UU
Department of Health,NHS Sheffield CCG,31/05/2022,Cont Care-Funded Nursing Care Allow,FUNDED NURSING CARE,YOUR CARE PROVIDER,40938670,27416.4,S73 0HQ
Department of Health,NHS Sheffield CCG,31/05/2022,Cont Care-Funded Nursing Care Allow,FUNDED NURSING CARE,ROSEBERRY CARE CENTRES,40938696,33856.26,S5 6AB
Department of Health,NHS Sheffield CCG,31/05/2022,Cont Care-Funded Nursing Care Allow,FUNDED NURSING CARE,BONDCARE,40938711,29212,NW4 4EF
Department of Health,NHS Sheffield CCG,31/05/2022,Cont Care- Prior Year Payments,CHC ADULT FULLY FUNDED,HORIZON CARE HOMES LTD,40938770,76228,S25 3QA
Department of Health,NHS Sheffield CCG,31/05/2022,Cont Care-Physical Disab (<65),CHC ADULT FULLY FUNDED,SOUTH YORKSHIRE HOUSING ASSOCIATION LTD,40938794,43726.29,S35 1RQ
Department of Health,NHS Sheffield CCG,31/05/2022,Cont Care-Physical Disab (<65),CHC ADULT FULLY FUNDED,SOUTH YORKSHIRE HOUSING ASSOCIATION LTD,40938797,52812,S35 1RQ
Department of Health,NHS Sheffield CCG,31/05/2022,Cont Care-Physical Disab (<65),CHC ADULT FULLY FUNDED,FAIRWINDS HEALTH CARE LTD,40938808,32633.43,S61 1AJ
Department of Health,NHS Sheffield CCG,31/05/2022,Cont Care-Physical Disab (<65),CHC ADULT FULLY FUNDED,LONGLEY HEALTH CARE LTD,40938820,68523.29,S5 7JZ
Department of Health,NHS Sheffield CCG,31/05/2022,Cont Care-Physical Disab (<65),CHC ADULT FULLY FUNDED,LONGLEY HEALTH CARE LTD,40938822,76822.66,S5 7JZ
Department of Health,NHS Sheffield CCG,31/05/2022,Cont Care-Physical Disab (<65),CHC ADULT FULLY FUNDED,SCARSDALE GRANGE NURSING HOME,40938853,39259.95,S8 9EQ
Department of Health,NHS Sheffield CCG,31/05/2022,Cont Care-Physical Disab (<65),CHC ADULT FULLY FUNDED,SCARSDALE GRANGE NURSING HOME,40938858,69073.89,S8 9EQ
Department of Health,NHS Sheffield CCG,31/05/2022,Cont Care-Physical Disab (<65),CHC ADULT FULLY FUNDED,SEVEN HILLS NURSING HOME,40938862,30773.45,S11 9AA
Department of Health,NHS Sheffield CCG,31/05/2022,Cont Care-Physical Disab (<65),CHC ADULT FULLY FUNDED,WILLOWBECK HEALTH CARE LTD,40938883,127250.98,S4 8AR
Department of Health,NHS Sheffield CCG,31/05/2022,Cont Care-Physical Disab (<65),CHC ADULT FULLY FUNDED,WILLOWBECK HEALTH CARE LTD,40938887,57606.1,S4 8AR
Department of Health,NHS Sheffield CCG,31/05/2022,Cont Care-Physical Disab (<65),CHC ADULT FULLY FUNDED,BONDCARE,40938980,36934.2,NW4 4EF
Department of Health,NHS Sheffield CCG,31/05/2022,Cont Care-Physical Disab (<65),CHC ADULT FULLY FUNDED,ROSEBERRY CARE CENTRES,40938990,26749.28,S4 7AJ
Department of Health,NHS Sheffield CCG,31/05/2022,Cont Care-Physical Disab (<65),CHC ADULT FULLY FUNDED,HORIZON CARE HOMES LTD,40938996,51104.02,S25 3QA
Department of Health,NHS Sheffield CCG,31/05/2022,Cont Care-Physical Disab (<65),CHC ADULT FULLY FUNDED,HORIZON CARE HOMES LTD,40939002,31443.92,S25 3QA
Department of Health,NHS Sheffield CCG,31/05/2022,Cont Care-Physical Disab (<65),CHC ADULT FULLY FUNDED,SUSASH GB LTD T/A EAGLE HOUSE,40939008,26863.87,S11 8NP
Department of Health,NHS Sheffield CCG,31/05/2022,Cont Care-Physical Disab (<65),CHC ADULT FULLY FUNDED,HORIZON CARE HOMES LTD,40939011,28232.15,S25 3QA
Department of Health,NHS Sheffield CCG,31/05/2022,Cont Care-Physical Disab (<65),CHC ADULT FULLY FUNDED,HORIZON CARE HOMES LTD,40939014,93717.13,S25 3QA
Department of Health,NHS Sheffield CCG,31/05/2022,Cont Care-Physical Disab (<65),CHC ADULT FULLY FUNDED,VALORUM CARE LTD,40939017,30211.09,LS19 7RW
Department of Health,NHS Sheffield CCG,31/05/2022,Cont Care-Physical Disab (<65),CHC ADULT FULLY FUNDED,INLET LTD,40939032,36703.39,S48NB
Department of Health,NHS Sheffield CCG,31/05/2022,C&M-GMS LES Translation Fees,INTERPRETING SERVICES,LANGUAGELINE SOLUTIONS,40964459,28921.8,E14 5NR
Department of Health,NHS Sheffield CCG,31/05/2022,Clinical&Medical-Voluntary Sector,COMMUNITY SERVICES,CRUSE BEREAVEMENT CARE,40964462,97000,TW9 2GW
Department of Health,NHS Sheffield CCG,31/05/2022,Services From Local Authorities,MENTAL HEALTH SERVICES - COLLABORATIVE COMMISSIONING,SHEFFIELD CITY COUNCIL,40964470,47271.12,S1 2HH
Department of Health,NHS Sheffield CCG,31/05/2022,C&M-GMS LES Basket of Procedures,LOCAL ENHANCED SERVICES,PRIMARY CARE SHEFFIELD LTD,40971489,53558.33,S12 3GH
Department of Health,NHS Sheffield CCG,31/05/2022,C&M-APMS DES Extended Hours Access,GP FORWARD VIEW,PRIMARY CARE SHEFFIELD LTD,40971491,309441.67,S12 3GH
Department of Health,NHS Sheffield CCG,31/05/2022,Clinical&Medical-Othe Public Sector,COMMUNITY SERVICES,SHEFFIELD CITY COUNCIL,40971500,266250.03,S1 1UJ
Department of Health,NHS Sheffield CCG,31/05/2022,Clinical&Medical-Othe Public Sector,MENTAL HEALTH SERVICES - COLLABORATIVE COMMISSIONING,SHEFFIELD CITY COUNCIL,40971500,83669.09,S1 1UJ
Department of Health,NHS Sheffield CCG,31/05/2022,Clinical&Medical-Othe Public Sector,REABLEMENT,SHEFFIELD CITY COUNCIL,40971500,21808.67,S1 1UJ
Department of Health,NHS Sheffield CCG,31/05/2022,Clinical&Medical-Othe Public Sector,SAFEGUARDING,SHEFFIELD CITY COUNCIL,40971500,16596.33,S1 1UJ
Department of Health,NHS Sheffield CCG,31/05/2022,Cont Care-Physical Disab (65+),CHC ADULT FULLY FUNDED,SHEFFIELD CITY COUNCIL,40971500,62356.82,S1 1UJ
Department of Health,NHS Sheffield CCG,31/05/2022,Soc Care-Joint H&C Teams/Working,INTERMEDIATE CARE,SHEFFIELD CITY COUNCIL,40971500,151447.58,S1 1UJ
Department of Health,NHS Sheffield CCG,31/05/2022,Soc Care-Other Soc Care,COMMISSIONING - NON ACUTE,SHEFFIELD CITY COUNCIL,40971500,1635250,S1 1UJ
Department of Health,NHS Sheffield CCG,31/05/2022,Soc Care-Support Prim Care,COMMUNITY SERVICES,SHEFFIELD CITY COUNCIL,40971500,69166.67,S1 1UJ
Department of Health,NHS Sheffield CCG,31/05/2022,C&M-GMS IT Comm Servs -GP Practices,PRIMARY CARE IT,REDCENTRIC SOLUTIONS LTD,40995971,19658.52,HG3 1UG
Department of Health,NHS Sheffield CCG,31/05/2022,C&M-GMS IT Comm Servs -GP Practices,PRIMARY CARE IT,REDCENTRIC SOLUTIONS LTD,40995971,3931.71,HG3 1UG
Department of Health,NHS Sheffield CCG,31/05/2022,Telecoms-Data lines,IM&T,REDCENTRIC SOLUTIONS LTD,40995971,10096.1,HG3 1UG
Department of Health,NHS Sheffield CCG,31/05/2022,External Consultancy Fees,BEREAVEMENT SERVICE,ATTAIN HEALTH MANAGEMENT SERVICES LTD,41024428,71280,WC1V 7HZ
Department of Health,NHS Sheffield CCG,31/05/2022,External Consultancy Fees,BEREAVEMENT SERVICE,IDEAL HEALTH CONSULTANTS LTD,41024445,100602.74,GU1 4SJ
Department of Health,NHS Sheffield CCG,31/05/2022,Cont Care- Prior Year Payments,CHC ADULT FULLY FUNDED,RIVERSIDE RESIDENTIAL SERVICES LTD,41025170,41959.43,DN2 5BE
Department of Health,NHS Sheffield CCG,31/05/2022,Cont Care-Mental Health (<65),CHC ADULT FULLY FUNDED,RIVERSIDE RESIDENTIAL SERVICES LTD,41025214,40605.9,DN2 5BE
Department of Health,NHS Sheffield CCG,31/05/2022,External Consultancy Fees,BEREAVEMENT SERVICE,CLEVER TOGETHER LAB LTD,41025617,47070,SE1 9PD
Department of Health,NHS Sheffield CCG,31/05/2022,Audit Fees : External non statutory,EXTERNAL AUDIT,KPMG LLP,41025815,75600,WD17 1DE
Department of Health,NHS Sheffield CCG,31/05/2022,Clinical&Medical-Independent Sector,ACUTE COMMISSIONING,CLAREMONT HOSPITAL,41025834,70529,S10 5UB
Department of Health,NHS Sheffield CCG,31/05/2022,Clinical&Medical-Independent Sector,ACUTE COMMISSIONING,ONEHEALTH GROUP,41043082,34530.58,S11 8UX
Department of Health,NHS Sheffield CCG,31/05/2022,Clinical&Medical-Independent Sector,Mental Health Services - S117 Mental Health,MOORVILLE RESIDENTIAL,41101531,12732.01,S10 5FA
Department of Health,NHS Sheffield CCG,31/05/2022,Clinical&Medical-Independent Sector,Mental Health Services - S117 Mental Health,MOORVILLE RESIDENTIAL,41101531,17834.18,S10 5FA
Department of Health,NHS Sheffield CCG,31/05/2022,Cont Care- Prior Year Payments,CHC ADULT FULLY FUNDED,SEASHELL TRUST,41102174,968.82,SK8 6RQ
Department of Health,NHS Sheffield CCG,31/05/2022,Cont Care-Learning Disab(<65),CHC ADULT FULLY FUNDED,SEASHELL TRUST,41102174,29549.1,SK8 6RQ
Department of Health,NHS Sheffield CCG,31/05/2022,C&M-GMS DES Learn Dsblty Hlth Chk,PRC DELEGATED CO-COMMISSIONING,WALKLEY HOUSE MEDICAL CENTRE,41116599,1400,S6 3TN
Department of Health,NHS Sheffield CCG,31/05/2022,C&M-GMS Global Sum,PRC DELEGATED CO-COMMISSIONING,WALKLEY HOUSE MEDICAL CENTRE,41116599,98032.53,S6 3TN
Department of Health,NHS Sheffield CCG,31/05/2022,C&M-GMS LONG COVID ES,PRC DELEGATED CO-COMMISSIONING,WALKLEY HOUSE MEDICAL CENTRE,41116599,1522.84,S6 3TN
Department of Health,NHS Sheffield CCG,31/05/2022,C&M-GMS PCN DES Participation,PRC DELEGATED CO-COMMISSIONING,WALKLEY HOUSE MEDICAL CENTRE,41116599,1788.4,S6 3TN
Department of Health,NHS Sheffield CCG,31/05/2022,C&M-GMS Prem Notional Rent,PRC DELEGATED CO-COMMISSIONING,WALKLEY HOUSE MEDICAL CENTRE,41116599,5806.95,S6 3TN
Department of Health,NHS Sheffield CCG,31/05/2022,C&M-GMS QOF Aspiration,PRC DELEGATED CO-COMMISSIONING,WALKLEY HOUSE MEDICAL CENTRE,41116599,9574.27,S6 3TN
Department of Health,NHS Sheffield CCG,31/05/2022,C&M-GMS DES Learn Dsblty Hlth Chk,PRC DELEGATED CO-COMMISSIONING,NORFOLK PARK HEALTH CENTRE,41116602,1540,S2 3TA
Department of Health,NHS Sheffield CCG,31/05/2022,C&M-GMS Global Sum,PRC DELEGATED CO-COMMISSIONING,NORFOLK PARK HEALTH CENTRE,41116602,44345.58,S2 3TA
Department of Health,NHS Sheffield CCG,31/05/2022,C&M-GMS LONG COVID ES,PRC DELEGATED CO-COMMISSIONING,NORFOLK PARK HEALTH CENTRE,41116602,627.07,S2 3TA
Department of Health,NHS Sheffield CCG,31/05/2022,C&M-GMS PCN DES Participation,PRC DELEGATED CO-COMMISSIONING,NORFOLK PARK HEALTH CENTRE,41116602,824.85,S2 3TA
Department of Health,NHS Sheffield CCG,31/05/2022,C&M-GMS Prem Healthcentre Rent,PRC DELEGATED CO-COMMISSIONING,NORFOLK PARK HEALTH CENTRE,41116602,25961.05,S2 3TA
Department of Health,NHS Sheffield CCG,31/05/2022,C&M-GMS QOF Aspiration,PRC DELEGATED CO-COMMISSIONING,NORFOLK PARK HEALTH CENTRE,41116602,3819.37,S2 3TA
Department of Health,NHS Sheffield CCG,31/05/2022,C&M-GMS WEIGHT MANAGEMENT SERVICE,PRC DELEGATED CO-COMMISSIONING,NORFOLK PARK HEALTH CENTRE,41116602,23,S2 3TA
Department of Health,NHS Sheffield CCG,31/05/2022,C&M-GMS DES Learn Dsblty Hlth Chk,PRC DELEGATED CO-COMMISSIONING,BUCHANAN ROAD SURGERY,41116608,140,S5 8AL
Department of Health,NHS Sheffield CCG,31/05/2022,C&M-GMS Global Sum,PRC DELEGATED CO-COMMISSIONING,BUCHANAN ROAD SURGERY,41116608,38837.73,S5 8AL
Department of Health,NHS Sheffield CCG,31/05/2022,C&M-GMS LONG COVID ES,PRC DELEGATED CO-COMMISSIONING,BUCHANAN ROAD SURGERY,41116608,578.34,S5 8AL
Department of Health,NHS Sheffield CCG,31/05/2022,C&M-GMS PCN DES Participation,PRC DELEGATED CO-COMMISSIONING,BUCHANAN ROAD SURGERY,41116608,710.76,S5 8AL
Department of Health,NHS Sheffield CCG,31/05/2022,C&M-GMS Prem Notional Rent,PRC DELEGATED CO-COMMISSIONING,BUCHANAN ROAD SURGERY,41116608,2595.83,S5 8AL
Department of Health,NHS Sheffield CCG,31/05/2022,C&M-GMS QOF Aspiration,PRC DELEGATED CO-COMMISSIONING,BUCHANAN ROAD SURGERY,41116608,4337.46,S5 8AL
Department of Health,NHS Sheffield CCG,31/05/2022,C&M-GMS WEIGHT MANAGEMENT SERVICE,PRC DELEGATED CO-COMMISSIONING,BUCHANAN ROAD SURGERY,41116608,149.5,S5 8AL
Department of Health,NHS Sheffield CCG,31/05/2022,C&M-GMS DES Learn Dsblty Hlth Chk,PRC DELEGATED CO-COMMISSIONING,NORWOOD MEDICAL CENTRE SHEFFIELD,41116611,2380,S5 7HD
Department of Health,NHS Sheffield CCG,31/05/2022,C&M-GMS Global Sum,PRC DELEGATED CO-COMMISSIONING,NORWOOD MEDICAL CENTRE SHEFFIELD,41116611,72885.99,S5 7HD
Department of Health,NHS Sheffield CCG,31/05/2022,C&M-GMS LONG COVID ES,PRC DELEGATED CO-COMMISSIONING,NORWOOD MEDICAL CENTRE SHEFFIELD,41116611,1012.46,S5 7HD
Department of Health,NHS Sheffield CCG,31/05/2022,C&M-GMS PCN DES Participation,PRC DELEGATED CO-COMMISSIONING,NORWOOD MEDICAL CENTRE SHEFFIELD,41116611,1325.2,S5 7HD
Department of Health,NHS Sheffield CCG,31/05/2022,C&M-GMS PCO Locum Adop/Pat/Mat,PRC DELEGATED CO-COMMISSIONING,NORWOOD MEDICAL CENTRE SHEFFIELD,41116611,32705.18,S5 7HD
Department of Health,NHS Sheffield CCG,31/05/2022,C&M-GMS Prem Notional Rent,PRC DELEGATED CO-COMMISSIONING,NORWOOD MEDICAL CENTRE SHEFFIELD,41116611,5187.5,S5 7HD
Department of Health,NHS Sheffield CCG,31/05/2022,C&M-GMS QOF Aspiration,PRC DELEGATED CO-COMMISSIONING,NORWOOD MEDICAL CENTRE SHEFFIELD,41116611,7785.59,S5 7HD
Department of Health,NHS Sheffield CCG,31/05/2022,C&M-GMS WEIGHT MANAGEMENT SERVICE,PRC DELEGATED CO-COMMISSIONING,NORWOOD MEDICAL CENTRE SHEFFIELD,41116611,161,S5 7HD
Department of Health,NHS Sheffield CCG,31/05/2022,C&M-GMS GP Statutory Levy,PRC DELEGATED CO-COMMISSIONING,NORWOOD MEDICAL CENTRE SHEFFIELD,41116612,-290.05,S5 7HD
Department of Health,NHS Sheffield CCG,31/05/2022,C&M-GMS DES Learn Dsblty Hlth Chk,PRC DELEGATED CO-COMMISSIONING,CARTERKNOWLE & DORE MEDICAL PRACTICE,41116615,280,S7 2DW
Department of Health,NHS Sheffield CCG,31/05/2022,C&M-GMS Global Sum,PRC DELEGATED CO-COMMISSIONING,CARTERKNOWLE & DORE MEDICAL PRACTICE,41116615,97811,S7 2DW
Department of Health,NHS Sheffield CCG,31/05/2022,C&M-GMS LONG COVID ES,PRC DELEGATED CO-COMMISSIONING,CARTERKNOWLE & DORE MEDICAL PRACTICE,41116615,1571.7,S7 2DW
Department of Health,NHS Sheffield CCG,31/05/2022,C&M-GMS PCN DES Participation,PRC DELEGATED CO-COMMISSIONING,CARTERKNOWLE & DORE MEDICAL PRACTICE,41116615,1791.18,S7 2DW
Department of Health,NHS Sheffield CCG,31/05/2022,C&M-GMS Prem Notional Rent,PRC DELEGATED CO-COMMISSIONING,CARTERKNOWLE & DORE MEDICAL PRACTICE,41116615,7855,S7 2DW
Department of Health,NHS Sheffield CCG,31/05/2022,C&M-GMS QOF Aspiration,PRC DELEGATED CO-COMMISSIONING,CARTERKNOWLE & DORE MEDICAL PRACTICE,41116615,11537.81,S7 2DW
Department of Health,NHS Sheffield CCG,31/05/2022,C&M-GMS WAF Security Funding,PRC DELEGATED CO-COMMISSIONING,CARTERKNOWLE & DORE MEDICAL PRACTICE,41116615,342.41,S7 2DW
Department of Health,NHS Sheffield CCG,31/05/2022,C&M-GMS DES Learn Dsblty Hlth Chk,PRC DELEGATED CO-COMMISSIONING,TRAMWAYS MEDICAL CENTRE,41116618,1540,S6 4JQ
Department of Health,NHS Sheffield CCG,31/05/2022,C&M-GMS Global Sum,PRC DELEGATED CO-COMMISSIONING,TRAMWAYS MEDICAL CENTRE,41116618,69067.24,S6 4JQ
Department of Health,NHS Sheffield CCG,31/05/2022,C&M-GMS PCN DES Participation,PRC DELEGATED CO-COMMISSIONING,TRAMWAYS MEDICAL CENTRE,41116618,1266.06,S6 4JQ
Department of Health,NHS Sheffield CCG,31/05/2022,C&M-GMS Prem Actual Rent,PRC DELEGATED CO-COMMISSIONING,TRAMWAYS MEDICAL CENTRE,41116618,4012.75,S6 4JQ
Department of Health,NHS Sheffield CCG,31/05/2022,C&M-GMS QOF Aspiration,PRC DELEGATED CO-COMMISSIONING,TRAMWAYS MEDICAL CENTRE,41116618,6916.59,S6 4JQ
Department of Health,NHS Sheffield CCG,31/05/2022,C&M-GMS DES Learn Dsblty Hlth Chk,PRC DELEGATED CO-COMMISSIONING,WHITE HOUSE SURGERY SHEFFIELD,41116622,560,S2 1SL
Department of Health,NHS Sheffield CCG,31/05/2022,C&M-GMS Global Sum,PRC DELEGATED CO-COMMISSIONING,WHITE HOUSE SURGERY SHEFFIELD,41116622,60376.57,S2 1SL
Department of Health,NHS Sheffield CCG,31/05/2022,C&M-GMS LONG COVID ES,PRC DELEGATED CO-COMMISSIONING,WHITE HOUSE SURGERY SHEFFIELD,41116622,852.62,S2 1SL
Department of Health,NHS Sheffield CCG,31/05/2022,C&M-GMS PCN DES Participation,PRC DELEGATED CO-COMMISSIONING,WHITE HOUSE SURGERY SHEFFIELD,41116622,1108.44,S2 1SL
Department of Health,NHS Sheffield CCG,31/05/2022,C&M-GMS PCO Other,PRC DELEGATED CO-COMMISSIONING,WHITE HOUSE SURGERY SHEFFIELD,41116622,4557,S2 1SL
Department of Health,NHS Sheffield CCG,31/05/2022,C&M-GMS Prem Notional Rent,PRC DELEGATED CO-COMMISSIONING,WHITE HOUSE SURGERY SHEFFIELD,41116622,9570.83,S2 1SL
Department of Health,NHS Sheffield CCG,31/05/2022,C&M-GMS QOF Aspiration,PRC DELEGATED CO-COMMISSIONING,WHITE HOUSE SURGERY SHEFFIELD,41116622,6340.1,S2 1SL
Department of Health,NHS Sheffield CCG,31/05/2022,C&M-GMS WEIGHT MANAGEMENT SERVICE,PRC DELEGATED CO-COMMISSIONING,WHITE HOUSE SURGERY SHEFFIELD,41116622,23,S2 1SL
Department of Health,NHS Sheffield CCG,31/05/2022,C&M-GMS Global Sum,PRC DELEGATED CO-COMMISSIONING,FAR LANE MEDICAL CENTRE,41116625,61600.41,S6 4FA
Department of Health,NHS Sheffield CCG,31/05/2022,C&M-GMS LONG COVID ES,PRC DELEGATED CO-COMMISSIONING,FAR LANE MEDICAL CENTRE,41116625,886.48,S6 4FA
Department of Health,NHS Sheffield CCG,31/05/2022,C&M-GMS PCN DES Participation,PRC DELEGATED CO-COMMISSIONING,FAR LANE MEDICAL CENTRE,41116625,1133.45,S6 4FA
Department of Health,NHS Sheffield CCG,31/05/2022,C&M-GMS PCO Other,PRC DELEGATED CO-COMMISSIONING,FAR LANE MEDICAL CENTRE,41116625,922,S6 4FA
Department of Health,NHS Sheffield CCG,31/05/2022,C&M-GMS Prem Notional Rent,PRC DELEGATED CO-COMMISSIONING,FAR LANE MEDICAL CENTRE,41116625,3425,S6 4FA
Department of Health,NHS Sheffield CCG,31/05/2022,C&M-GMS Prem Rates,PRC DELEGATED CO-COMMISSIONING,FAR LANE MEDICAL CENTRE,41116625,1105,S6 4FA
Department of Health,NHS Sheffield CCG,31/05/2022,C&M-GMS Prem Water Rates,PRC DELEGATED CO-COMMISSIONING,FAR LANE MEDICAL CENTRE,41116625,53.05,S6 4FA
Department of Health,NHS Sheffield CCG,31/05/2022,C&M-GMS QOF Aspiration,PRC DELEGATED CO-COMMISSIONING,FAR LANE MEDICAL CENTRE,41116625,6847.29,S6 4FA
Department of Health,NHS Sheffield CCG,31/05/2022,C&M-GMS WEIGHT MANAGEMENT SERVICE,PRC DELEGATED CO-COMMISSIONING,FAR LANE MEDICAL CENTRE,41116625,11.5,S6 4FA
Department of Health,NHS Sheffield CCG,31/05/2022,C&M-GMS DES Learn Dsblty Hlth Chk,PRC DELEGATED CO-COMMISSIONING,STONECROFT MEDICAL CENTRE,41116628,420,S12 2LJ
Department of Health,NHS Sheffield CCG,31/05/2022,C&M-GMS Global Sum,PRC DELEGATED CO-COMMISSIONING,STONECROFT MEDICAL CENTRE,41116628,38311.66,S12 2LJ
Department of Health,NHS Sheffield CCG,31/05/2022,C&M-GMS LONG COVID ES,PRC DELEGATED CO-COMMISSIONING,STONECROFT MEDICAL CENTRE,41116628,520.8,S12 2LJ
Department of Health,NHS Sheffield CCG,31/05/2022,C&M-GMS PCN DES Participation,PRC DELEGATED CO-COMMISSIONING,STONECROFT MEDICAL CENTRE,41116628,693.23,S12 2LJ
Department of Health,NHS Sheffield CCG,31/05/2022,C&M-GMS Prem Notional Rent,PRC DELEGATED CO-COMMISSIONING,STONECROFT MEDICAL CENTRE,41116628,2935.41,S12 2LJ
Department of Health,NHS Sheffield CCG,31/05/2022,C&M-GMS Prem Rates,PRC DELEGATED CO-COMMISSIONING,STONECROFT MEDICAL CENTRE,41116628,1235,S12 2LJ
Department of Health,NHS Sheffield CCG,31/05/2022,C&M-GMS QOF Aspiration,PRC DELEGATED CO-COMMISSIONING,STONECROFT MEDICAL CENTRE,41116628,4111.85,S12 2LJ
Department of Health,NHS Sheffield CCG,31/05/2022,C&M-GMS Global Sum,PRC DELEGATED CO-COMMISSIONING,BROOMHILL SURGERY,41116635,70786.81,S10 5BU
Department of Health,NHS Sheffield CCG,31/05/2022,C&M-GMS LONG COVID ES,PRC DELEGATED CO-COMMISSIONING,BROOMHILL SURGERY,41116635,1211.73,S10 5BU
Department of Health,NHS Sheffield CCG,31/05/2022,C&M-GMS PCN DES Participation,PRC DELEGATED CO-COMMISSIONING,BROOMHILL SURGERY,41116635,1297.25,S10 5BU
Department of Health,NHS Sheffield CCG,31/05/2022,C&M-GMS Prem Actual Rent,PRC DELEGATED CO-COMMISSIONING,BROOMHILL SURGERY,41116635,3309.67,S10 5BU
Department of Health,NHS Sheffield CCG,31/05/2022,C&M-GMS Prem Notional Rent,PRC DELEGATED CO-COMMISSIONING,BROOMHILL SURGERY,41116635,2612.5,S10 5BU
Department of Health,NHS Sheffield CCG,31/05/2022,C&M-GMS Prem Rates,PRC DELEGATED CO-COMMISSIONING,BROOMHILL SURGERY,41116635,1922,S10 5BU
Department of Health,NHS Sheffield CCG,31/05/2022,C&M-GMS QOF Aspiration,PRC DELEGATED CO-COMMISSIONING,BROOMHILL SURGERY,41116635,7102.19,S10 5BU
Department of Health,NHS Sheffield CCG,31/05/2022,C&M-GMS WEIGHT MANAGEMENT SERVICE,PRC DELEGATED CO-COMMISSIONING,BROOMHILL SURGERY,41116635,57.5,S10 5BU
Department of Health,NHS Sheffield CCG,31/05/2022,C&M-GMS Global Sum,PRC DELEGATED CO-COMMISSIONING,DUKE MEDICAL CENTRE,41116638,69533.21,S2 2TD
Department of Health,NHS Sheffield CCG,31/05/2022,C&M-GMS LONG COVID ES,PRC DELEGATED CO-COMMISSIONING,DUKE MEDICAL CENTRE,41116638,928.39,S2 2TD
Department of Health,NHS Sheffield CCG,31/05/2022,C&M-GMS PCN DES Participation,PRC DELEGATED CO-COMMISSIONING,DUKE MEDICAL CENTRE,41116638,1216.65,S2 2TD
Department of Health,NHS Sheffield CCG,31/05/2022,C&M-GMS Prem Notional Rent,PRC DELEGATED CO-COMMISSIONING,DUKE MEDICAL CENTRE,41116638,5916.67,S2 2TD
Department of Health,NHS Sheffield CCG,31/05/2022,C&M-GMS QOF Aspiration,PRC DELEGATED CO-COMMISSIONING,DUKE MEDICAL CENTRE,41116638,5805.17,S2 2TD
Department of Health,NHS Sheffield CCG,31/05/2022,C&M-GMS DES Learn Dsblty Hlth Chk,PRC DELEGATED CO-COMMISSIONING,UPPERTHORPE MEDICAL CENTRE,41116641,560,S6 3FT
Department of Health,NHS Sheffield CCG,31/05/2022,C&M-GMS Global Sum,PRC DELEGATED CO-COMMISSIONING,UPPERTHORPE MEDICAL CENTRE,41116641,98319.91,S6 3FT
Department of Health,NHS Sheffield CCG,31/05/2022,C&M-GMS LONG COVID ES,PRC DELEGATED CO-COMMISSIONING,UPPERTHORPE MEDICAL CENTRE,41116641,1530.9,S6 3FT
Department of Health,NHS Sheffield CCG,31/05/2022,C&M-GMS PCN DES Participation,PRC DELEGATED CO-COMMISSIONING,UPPERTHORPE MEDICAL CENTRE,41116641,1792.86,S6 3FT
Department of Health,NHS Sheffield CCG,31/05/2022,C&M-GMS PCO Other,PRC DELEGATED CO-COMMISSIONING,UPPERTHORPE MEDICAL CENTRE,41116641,7774,S6 3FT
Department of Health,NHS Sheffield CCG,31/05/2022,C&M-GMS Prem Actual Rent,PRC DELEGATED CO-COMMISSIONING,UPPERTHORPE MEDICAL CENTRE,41116641,419.5,S6 3FT
Department of Health,NHS Sheffield CCG,31/05/2022,C&M-GMS Prem Notional Rent,PRC DELEGATED CO-COMMISSIONING,UPPERTHORPE MEDICAL CENTRE,41116641,2128.33,S6 3FT
Department of Health,NHS Sheffield CCG,31/05/2022,C&M-GMS Prem Rates,PRC DELEGATED CO-COMMISSIONING,UPPERTHORPE MEDICAL CENTRE,41116641,2119.25,S6 3FT
Department of Health,NHS Sheffield CCG,31/05/2022,C&M-GMS Prem Water Rates,PRC DELEGATED CO-COMMISSIONING,UPPERTHORPE MEDICAL CENTRE,41116641,473.8,S6 3FT
Department of Health,NHS Sheffield CCG,31/05/2022,C&M-GMS QOF Aspiration,PRC DELEGATED CO-COMMISSIONING,UPPERTHORPE MEDICAL CENTRE,41116641,10027.35,S6 3FT
Department of Health,NHS Sheffield CCG,31/05/2022,C&M-GMS WEIGHT MANAGEMENT SERVICE,PRC DELEGATED CO-COMMISSIONING,UPPERTHORPE MEDICAL CENTRE,41116641,69,S6 3FT
Department of Health,NHS Sheffield CCG,31/05/2022,C&M-GMS DES Learn Dsblty Hlth Chk,PRC DELEGATED CO-COMMISSIONING,CHARNOCK HEALTH PRIMARY CARE CENTRE,41116644,420,S12 3GH
Department of Health,NHS Sheffield CCG,31/05/2022,C&M-GMS Global Sum,PRC DELEGATED CO-COMMISSIONING,CHARNOCK HEALTH PRIMARY CARE CENTRE,41116644,48857.91,S12 3GH
Department of Health,NHS Sheffield CCG,31/05/2022,C&M-GMS LONG COVID ES,PRC DELEGATED CO-COMMISSIONING,CHARNOCK HEALTH PRIMARY CARE CENTRE,41116644,692.54,S12 3GH
Department of Health,NHS Sheffield CCG,31/05/2022,C&M-GMS PCN DES Participation,PRC DELEGATED CO-COMMISSIONING,CHARNOCK HEALTH PRIMARY CARE CENTRE,41116644,889.41,S12 3GH
Department of Health,NHS Sheffield CCG,31/05/2022,C&M-GMS PCO Other,PRC DELEGATED CO-COMMISSIONING,CHARNOCK HEALTH PRIMARY CARE CENTRE,41116644,744.4,S12 3GH
Department of Health,NHS Sheffield CCG,31/05/2022,C&M-GMS Prem Notional Rent,PRC DELEGATED CO-COMMISSIONING,CHARNOCK HEALTH PRIMARY CARE CENTRE,41116644,340,S12 3GH
Department of Health,NHS Sheffield CCG,31/05/2022,C&M-GMS Prem Rates,PRC DELEGATED CO-COMMISSIONING,CHARNOCK HEALTH PRIMARY CARE CENTRE,41116644,1160,S12 3GH
Department of Health,NHS Sheffield CCG,31/05/2022,C&M-GMS Prem Water Rates,PRC DELEGATED CO-COMMISSIONING,CHARNOCK HEALTH PRIMARY CARE CENTRE,41116644,25.26,S12 3GH
Department of Health,NHS Sheffield CCG,31/05/2022,C&M-GMS QOF Aspiration,PRC DELEGATED CO-COMMISSIONING,CHARNOCK HEALTH PRIMARY CARE CENTRE,41116644,5396.14,S12 3GH
Department of Health,NHS Sheffield CCG,31/05/2022,C&M-GMS WEIGHT MANAGEMENT SERVICE,PRC DELEGATED CO-COMMISSIONING,CHARNOCK HEALTH PRIMARY CARE CENTRE,41116644,23,S12 3GH
Department of Health,NHS Sheffield CCG,31/05/2022,C&M-GMS Global Sum,PRC DELEGATED CO-COMMISSIONING,HANDSWORTH MEDICAL PRACTICE SHEFFIELD,41116649,87564.21,S13 9BZ
Department of Health,NHS Sheffield CCG,31/05/2022,C&M-GMS LONG COVID ES,PRC DELEGATED CO-COMMISSIONING,HANDSWORTH MEDICAL PRACTICE SHEFFIELD,41116649,1297.29,S13 9BZ
Department of Health,NHS Sheffield CCG,31/05/2022,C&M-GMS PCN DES Participation,PRC DELEGATED CO-COMMISSIONING,HANDSWORTH MEDICAL PRACTICE SHEFFIELD,41116649,1607.19,S13 9BZ
Department of Health,NHS Sheffield CCG,31/05/2022,C&M-GMS PCO Other,PRC DELEGATED CO-COMMISSIONING,HANDSWORTH MEDICAL PRACTICE SHEFFIELD,41116649,6532,S13 9BZ
Department of Health,NHS Sheffield CCG,31/05/2022,C&M-GMS Prem Notional Rent,PRC DELEGATED CO-COMMISSIONING,HANDSWORTH MEDICAL PRACTICE SHEFFIELD,41116649,3321.66,S13 9BZ
Department of Health,NHS Sheffield CCG,31/05/2022,C&M-GMS Prem Rates,PRC DELEGATED CO-COMMISSIONING,HANDSWORTH MEDICAL PRACTICE SHEFFIELD,41116649,1300,S13 9BZ
Department of Health,NHS Sheffield CCG,31/05/2022,C&M-GMS QOF Aspiration,PRC DELEGATED CO-COMMISSIONING,HANDSWORTH MEDICAL PRACTICE SHEFFIELD,41116649,8437.98,S13 9BZ
Department of Health,NHS Sheffield CCG,31/05/2022,C&M-GMS Global Sum,PRC DELEGATED CO-COMMISSIONING,BASLOW ROAD & SHOREHAM STREET SURGERIES,41116652,107461.57,S17 4DR
Department of Health,NHS Sheffield CCG,31/05/2022,C&M-GMS LONG COVID ES,PRC DELEGATED CO-COMMISSIONING,BASLOW ROAD & SHOREHAM STREET SURGERIES,41116652,1531.52,S17 4DR
Department of Health,NHS Sheffield CCG,31/05/2022,C&M-GMS PCN DES Participation,PRC DELEGATED CO-COMMISSIONING,BASLOW ROAD & SHOREHAM STREET SURGERIES,41116652,1966.11,S17 4DR
Department of Health,NHS Sheffield CCG,31/05/2022,C&M-GMS Prem Healthcentre Rent,PRC DELEGATED CO-COMMISSIONING,BASLOW ROAD & SHOREHAM STREET SURGERIES,41116652,15641.73,S17 4DR
Department of Health,NHS Sheffield CCG,31/05/2022,C&M-GMS Prem Notional Rent,PRC DELEGATED CO-COMMISSIONING,BASLOW ROAD & SHOREHAM STREET SURGERIES,41116652,5715.42,S17 4DR
Department of Health,NHS Sheffield CCG,31/05/2022,C&M-GMS Prem Rates,PRC DELEGATED CO-COMMISSIONING,BASLOW ROAD & SHOREHAM STREET SURGERIES,41116652,2796,S17 4DR
Department of Health,NHS Sheffield CCG,31/05/2022,C&M-GMS Prem Water Rates,PRC DELEGATED CO-COMMISSIONING,BASLOW ROAD & SHOREHAM STREET SURGERIES,41116652,256,S17 4DR
Department of Health,NHS Sheffield CCG,31/05/2022,C&M-GMS QOF Aspiration,PRC DELEGATED CO-COMMISSIONING,BASLOW ROAD & SHOREHAM STREET SURGERIES,41116652,9826.49,S17 4DR
Department of Health,NHS Sheffield CCG,31/05/2022,C&M-GMS WEIGHT MANAGEMENT SERVICE,PRC DELEGATED CO-COMMISSIONING,BASLOW ROAD & SHOREHAM STREET SURGERIES,41116652,207,S17 4DR
Department of Health,NHS Sheffield CCG,31/05/2022,C&M-GMS Global Sum,PRC DELEGATED CO-COMMISSIONING,MATHEWS PRACTICE,41116654,58189.86,S2 4UJ
Department of Health,NHS Sheffield CCG,31/05/2022,C&M-GMS LONG COVID ES,PRC DELEGATED CO-COMMISSIONING,MATHEWS PRACTICE,41116654,928.26,S2 4UJ
Department of Health,NHS Sheffield CCG,31/05/2022,C&M-GMS PCN DES Participation,PRC DELEGATED CO-COMMISSIONING,MATHEWS PRACTICE,41116654,1083.22,S2 4UJ
Department of Health,NHS Sheffield CCG,31/05/2022,C&M-GMS QOF Aspiration,PRC DELEGATED CO-COMMISSIONING,MATHEWS PRACTICE,41116654,5529.87,S2 4UJ
Department of Health,NHS Sheffield CCG,31/05/2022,C&M-GMS DES Learn Dsblty Hlth Chk,PRC DELEGATED CO-COMMISSIONING,OUGHTIBRIDGE SURGERY,41116658,1120,S35 0FW
Department of Health,NHS Sheffield CCG,31/05/2022,C&M-GMS Global Sum,PRC DELEGATED CO-COMMISSIONING,OUGHTIBRIDGE SURGERY,41116658,48794.85,S35 0FW
Department of Health,NHS Sheffield CCG,31/05/2022,C&M-GMS LONG COVID ES,PRC DELEGATED CO-COMMISSIONING,OUGHTIBRIDGE SURGERY,41116658,711.64,S35 0FW
Department of Health,NHS Sheffield CCG,31/05/2022,C&M-GMS PCN DES Participation,PRC DELEGATED CO-COMMISSIONING,OUGHTIBRIDGE SURGERY,41116658,899.88,S35 0FW
Department of Health,NHS Sheffield CCG,31/05/2022,C&M-GMS PCO Other,PRC DELEGATED CO-COMMISSIONING,OUGHTIBRIDGE SURGERY,41116658,3813,S35 0FW
Department of Health,NHS Sheffield CCG,31/05/2022,C&M-GMS Prem Notional Rent,PRC DELEGATED CO-COMMISSIONING,OUGHTIBRIDGE SURGERY,41116658,4064.58,S35 0FW
Department of Health,NHS Sheffield CCG,31/05/2022,C&M-GMS Prem Rates,PRC DELEGATED CO-COMMISSIONING,OUGHTIBRIDGE SURGERY,41116658,511,S35 0FW
Department of Health,NHS Sheffield CCG,31/05/2022,C&M-GMS Prem Water Rates,PRC DELEGATED CO-COMMISSIONING,OUGHTIBRIDGE SURGERY,41116658,157.17,S35 0FW
Department of Health,NHS Sheffield CCG,31/05/2022,C&M-GMS QOF Aspiration,PRC DELEGATED CO-COMMISSIONING,OUGHTIBRIDGE SURGERY,41116658,4940.96,S35 0FW
Department of Health,NHS Sheffield CCG,31/05/2022,C&M-GMS WEIGHT MANAGEMENT SERVICE,PRC DELEGATED CO-COMMISSIONING,OUGHTIBRIDGE SURGERY,41116658,11.5,S35 0FW
Department of Health,NHS Sheffield CCG,31/05/2022,C&M-GMS Global Sum,PRC DELEGATED CO-COMMISSIONING,BEAUCHIEF MEDICAL PRACTICE,41116666,55576.59,S8 0BJ
Department of Health,NHS Sheffield CCG,31/05/2022,C&M-GMS LONG COVID ES,PRC DELEGATED CO-COMMISSIONING,BEAUCHIEF MEDICAL PRACTICE,41116666,884.37,S8 0BJ
Department of Health,NHS Sheffield CCG,31/05/2022,C&M-GMS PCN DES Participation,PRC DELEGATED CO-COMMISSIONING,BEAUCHIEF MEDICAL PRACTICE,41116666,1017.55,S8 0BJ
Department of Health,NHS Sheffield CCG,31/05/2022,C&M-GMS PCO Locum Adop/Pat/Mat,PRC DELEGATED CO-COMMISSIONING,BEAUCHIEF MEDICAL PRACTICE,41116666,5254.56,S8 0BJ
Department of Health,NHS Sheffield CCG,31/05/2022,C&M-GMS Prem Notional Rent,PRC DELEGATED CO-COMMISSIONING,BEAUCHIEF MEDICAL PRACTICE,41116666,3808.34,S8 0BJ
Department of Health,NHS Sheffield CCG,31/05/2022,C&M-GMS Prem Rates,PRC DELEGATED CO-COMMISSIONING,BEAUCHIEF MEDICAL PRACTICE,41116666,2186.5,S8 0BJ
Department of Health,NHS Sheffield CCG,31/05/2022,C&M-GMS Prem Water Rates,PRC DELEGATED CO-COMMISSIONING,BEAUCHIEF MEDICAL PRACTICE,41116666,62.5,S8 0BJ
Department of Health,NHS Sheffield CCG,31/05/2022,C&M-GMS QOF Aspiration,PRC DELEGATED CO-COMMISSIONING,BEAUCHIEF MEDICAL PRACTICE,41116666,5540.85,S8 0BJ
Department of Health,NHS Sheffield CCG,31/05/2022,C&M-GMS WEIGHT MANAGEMENT SERVICE,PRC DELEGATED CO-COMMISSIONING,BEAUCHIEF MEDICAL PRACTICE,41116666,172.5,S8 0BJ
Department of Health,NHS Sheffield CCG,31/05/2022,C&M-GMS Global Sum,PRC DELEGATED CO-COMMISSIONING,ELM LANE SURGERY,41116670,48096.32,S5 7TW
Department of Health,NHS Sheffield CCG,31/05/2022,C&M-GMS LONG COVID ES,PRC DELEGATED CO-COMMISSIONING,ELM LANE SURGERY,41116670,669.85,S5 7TW
Department of Health,NHS Sheffield CCG,31/05/2022,C&M-GMS PCN DES Participation,PRC DELEGATED CO-COMMISSIONING,ELM LANE SURGERY,41116670,882.17,S5 7TW
Department of Health,NHS Sheffield CCG,31/05/2022,C&M-GMS Prem Notional Rent,PRC DELEGATED CO-COMMISSIONING,ELM LANE SURGERY,41116670,5343,S5 7TW
Department of Health,NHS Sheffield CCG,31/05/2022,C&M-GMS Prem Rates,PRC DELEGATED CO-COMMISSIONING,ELM LANE SURGERY,41116670,1240,S5 7TW
Department of Health,NHS Sheffield CCG,31/05/2022,C&M-GMS QOF Aspiration,PRC DELEGATED CO-COMMISSIONING,ELM LANE SURGERY,41116670,5321.7,S5 7TW
Department of Health,NHS Sheffield CCG,31/05/2022,C&M-GMS WEIGHT MANAGEMENT SERVICE,PRC DELEGATED CO-COMMISSIONING,ELM LANE SURGERY,41116670,207,S5 7TW
Department of Health,NHS Sheffield CCG,31/05/2022,C&M-GMS DES Learn Dsblty Hlth Chk,PRC DELEGATED CO-COMMISSIONING,HOLLIES MEDICAL CENTRE,41116674,140,S11 9AL
Department of Health,NHS Sheffield CCG,31/05/2022,C&M-GMS Global Sum,PRC DELEGATED CO-COMMISSIONING,HOLLIES MEDICAL CENTRE,41116674,71543.74,S11 9AL
Department of Health,NHS Sheffield CCG,31/05/2022,C&M-GMS LONG COVID ES,PRC DELEGATED CO-COMMISSIONING,HOLLIES MEDICAL CENTRE,41116674,1235.29,S11 9AL
Department of Health,NHS Sheffield CCG,31/05/2022,C&M-GMS PCN DES Participation,PRC DELEGATED CO-COMMISSIONING,HOLLIES MEDICAL CENTRE,41116674,1298.01,S11 9AL
Department of Health,NHS Sheffield CCG,31/05/2022,C&M-GMS Prem Notional Rent,PRC DELEGATED CO-COMMISSIONING,HOLLIES MEDICAL CENTRE,41116674,3358.33,S11 9AL
Department of Health,NHS Sheffield CCG,31/05/2022,C&M-GMS QOF Aspiration,PRC DELEGATED CO-COMMISSIONING,HOLLIES MEDICAL CENTRE,41116674,8246.59,S11 9AL
Department of Health,NHS Sheffield CCG,31/05/2022,C&M-GMS WEIGHT MANAGEMENT SERVICE,PRC DELEGATED CO-COMMISSIONING,HOLLIES MEDICAL CENTRE,41116674,103.5,S11 9AL
Department of Health,NHS Sheffield CCG,31/05/2022,C&M-GMS Global Sum,PRC DELEGATED CO-COMMISSIONING,GRENOSIDE SURGERY,41116678,69048.37,S35 8NX
Department of Health,NHS Sheffield CCG,31/05/2022,C&M-GMS LONG COVID ES,PRC DELEGATED CO-COMMISSIONING,GRENOSIDE SURGERY,41116678,961.74,S35 8NX
Department of Health,NHS Sheffield CCG,31/05/2022,C&M-GMS PCN DES Participation,PRC DELEGATED CO-COMMISSIONING,GRENOSIDE SURGERY,41116678,1256.73,S35 8NX
Department of Health,NHS Sheffield CCG,31/05/2022,C&M-GMS PCO Other,PRC DELEGATED CO-COMMISSIONING,GRENOSIDE SURGERY,41116678,1009.4,S35 8NX
Department of Health,NHS Sheffield CCG,31/05/2022,C&M-GMS Prem Notional Rent,PRC DELEGATED CO-COMMISSIONING,GRENOSIDE SURGERY,41116678,8375,S35 8NX
Department of Health,NHS Sheffield CCG,31/05/2022,C&M-GMS Prem Rates,PRC DELEGATED CO-COMMISSIONING,GRENOSIDE SURGERY,41116678,674,S35 8NX
Department of Health,NHS Sheffield CCG,31/05/2022,C&M-GMS Prem Water Rates,PRC DELEGATED CO-COMMISSIONING,GRENOSIDE SURGERY,41116678,208.51,S35 8NX
Department of Health,NHS Sheffield CCG,31/05/2022,C&M-GMS QOF Aspiration,PRC DELEGATED CO-COMMISSIONING,GRENOSIDE SURGERY,41116678,6547.43,S35 8NX
Department of Health,NHS Sheffield CCG,31/05/2022,C&M-GMS DES Learn Dsblty Hlth Chk,PRC DELEGATED CO-COMMISSIONING,SHARROW LANE MEDICAL CENTRE,41116683,1120,S11 8AN
Department of Health,NHS Sheffield CCG,31/05/2022,C&M-GMS Global Sum,PRC DELEGATED CO-COMMISSIONING,SHARROW LANE MEDICAL CENTRE,41116683,27720.27,S11 8AN
Department of Health,NHS Sheffield CCG,31/05/2022,C&M-GMS LONG COVID ES,PRC DELEGATED CO-COMMISSIONING,SHARROW LANE MEDICAL CENTRE,41116683,510.14,S11 8AN
Department of Health,NHS Sheffield CCG,31/05/2022,C&M-GMS PCN DES Participation,PRC DELEGATED CO-COMMISSIONING,SHARROW LANE MEDICAL CENTRE,41116683,505.51,S11 8AN
Department of Health,NHS Sheffield CCG,31/05/2022,C&M-GMS Prem Notional Rent,PRC DELEGATED CO-COMMISSIONING,SHARROW LANE MEDICAL CENTRE,41116683,2741.67,S11 8AN
Department of Health,NHS Sheffield CCG,31/05/2022,C&M-GMS QOF Aspiration,PRC DELEGATED CO-COMMISSIONING,SHARROW LANE MEDICAL CENTRE,41116683,2776.77,S11 8AN
Department of Health,NHS Sheffield CCG,31/05/2022,C&M-GMS Global Sum,PRC DELEGATED CO-COMMISSIONING,HEELEY GREEN SURGERY,41116690,44756.54,S2 3AJ
Department of Health,NHS Sheffield CCG,31/05/2022,C&M-GMS LONG COVID ES,PRC DELEGATED CO-COMMISSIONING,HEELEY GREEN SURGERY,41116690,726.76,S2 3AJ
Department of Health,NHS Sheffield CCG,31/05/2022,C&M-GMS PCN DES Participation,PRC DELEGATED CO-COMMISSIONING,HEELEY GREEN SURGERY,41116690,827.44,S2 3AJ
Department of Health,NHS Sheffield CCG,31/05/2022,C&M-GMS Prem Notional Rent,PRC DELEGATED CO-COMMISSIONING,HEELEY GREEN SURGERY,41116690,3254.17,S2 3AJ
Department of Health,NHS Sheffield CCG,31/05/2022,C&M-GMS QOF Aspiration,PRC DELEGATED CO-COMMISSIONING,HEELEY GREEN SURGERY,41116690,4065.9,S2 3AJ
Department of Health,NHS Sheffield CCG,31/05/2022,C&M-GMS WEIGHT MANAGEMENT SERVICE,PRC DELEGATED CO-COMMISSIONING,HEELEY GREEN SURGERY,41116690,23,S2 3AJ
Department of Health,NHS Sheffield CCG,31/05/2022,C&M-GMS DES Learn Dsblty Hlth Chk,PRC DELEGATED CO-COMMISSIONING,DEVONSHIRE GREEN MEDICAL CENTRE,41116695,420,S3 7SF
Department of Health,NHS Sheffield CCG,31/05/2022,C&M-GMS Global Sum,PRC DELEGATED CO-COMMISSIONING,DEVONSHIRE GREEN MEDICAL CENTRE,41116695,56018.94,S3 7SF
Department of Health,NHS Sheffield CCG,31/05/2022,C&M-GMS LONG COVID ES,PRC DELEGATED CO-COMMISSIONING,DEVONSHIRE GREEN MEDICAL CENTRE,41116695,887.96,S3 7SF
Department of Health,NHS Sheffield CCG,31/05/2022,C&M-GMS PCN DES Participation,PRC DELEGATED CO-COMMISSIONING,DEVONSHIRE GREEN MEDICAL CENTRE,41116695,995.1,S3 7SF
Department of Health,NHS Sheffield CCG,31/05/2022,C&M-GMS Prem Notional Rent,PRC DELEGATED CO-COMMISSIONING,DEVONSHIRE GREEN MEDICAL CENTRE,41116695,5987.5,S3 7SF
Department of Health,NHS Sheffield CCG,31/05/2022,C&M-GMS Prem Rates,PRC DELEGATED CO-COMMISSIONING,DEVONSHIRE GREEN MEDICAL CENTRE,41116695,778,S3 7SF
Department of Health,NHS Sheffield CCG,31/05/2022,C&M-GMS QOF Aspiration,PRC DELEGATED CO-COMMISSIONING,DEVONSHIRE GREEN MEDICAL CENTRE,41116695,4868.71,S3 7SF
Department of Health,NHS Sheffield CCG,31/05/2022,C&M-GMS DES Learn Dsblty Hlth Chk,PRC DELEGATED CO-COMMISSIONING,CROOKES PRACTICE,41116700,2660,S10 1GN
Department of Health,NHS Sheffield CCG,31/05/2022,C&M-GMS Global Sum,PRC DELEGATED CO-COMMISSIONING,CROOKES PRACTICE,41116700,58565.88,S10 1GN
Department of Health,NHS Sheffield CCG,31/05/2022,C&M-GMS LONG COVID ES,PRC DELEGATED CO-COMMISSIONING,CROOKES PRACTICE,41116700,1046.93,S10 1GN
Department of Health,NHS Sheffield CCG,31/05/2022,C&M-GMS PCN DES Participation,PRC DELEGATED CO-COMMISSIONING,CROOKES PRACTICE,41116700,1076.76,S10 1GN
Department of Health,NHS Sheffield CCG,31/05/2022,C&M-GMS PCO Locum Adop/Pat/Mat,PRC DELEGATED CO-COMMISSIONING,CROOKES PRACTICE,41116700,9257.82,S10 1GN
Department of Health,NHS Sheffield CCG,31/05/2022,C&M-GMS Prem Notional Rent,PRC DELEGATED CO-COMMISSIONING,CROOKES PRACTICE,41116700,4006.58,S10 1GN
Department of Health,NHS Sheffield CCG,31/05/2022,C&M-GMS Prem Rates,PRC DELEGATED CO-COMMISSIONING,CROOKES PRACTICE,41116700,1534,S10 1GN
Department of Health,NHS Sheffield CCG,31/05/2022,C&M-GMS QOF Aspiration,PRC DELEGATED CO-COMMISSIONING,CROOKES PRACTICE,41116700,5220.51,S10 1GN
Department of Health,NHS Sheffield CCG,31/05/2022,C&M-GMS DES Learn Dsblty Hlth Chk,PRC DELEGATED CO-COMMISSIONING,MEDICAL CENTRE CRYSTAL PEAKS,41116720,1260,S20 7HZ
Department of Health,NHS Sheffield CCG,31/05/2022,C&M-GMS Global Sum,PRC DELEGATED CO-COMMISSIONING,MEDICAL CENTRE CRYSTAL PEAKS,41116720,53640.96,S20 7HZ
Department of Health,NHS Sheffield CCG,31/05/2022,C&M-GMS LONG COVID ES,PRC DELEGATED CO-COMMISSIONING,MEDICAL CENTRE CRYSTAL PEAKS,41116720,826.58,S20 7HZ
Department of Health,NHS Sheffield CCG,31/05/2022,C&M-GMS PCN DES Participation,PRC DELEGATED CO-COMMISSIONING,MEDICAL CENTRE CRYSTAL PEAKS,41116720,977.6,S20 7HZ
Department of Health,NHS Sheffield CCG,31/05/2022,C&M-GMS Prem Notional Rent,PRC DELEGATED CO-COMMISSIONING,MEDICAL CENTRE CRYSTAL PEAKS,41116720,270,S20 7HZ
Department of Health,NHS Sheffield CCG,31/05/2022,C&M-GMS Prem Rates,PRC DELEGATED CO-COMMISSIONING,MEDICAL CENTRE CRYSTAL PEAKS,41116720,1073,S20 7HZ
Department of Health,NHS Sheffield CCG,31/05/2022,C&M-GMS QOF Aspiration,PRC DELEGATED CO-COMMISSIONING,MEDICAL CENTRE CRYSTAL PEAKS,41116720,7046.36,S20 7HZ
Department of Health,NHS Sheffield CCG,31/05/2022,C&M-GMS WEIGHT MANAGEMENT SERVICE,PRC DELEGATED CO-COMMISSIONING,MEDICAL CENTRE CRYSTAL PEAKS,41116720,34.5,S20 7HZ
Department of Health,NHS Sheffield CCG,31/05/2022,C&M-GMS Global Sum,PRC DELEGATED CO-COMMISSIONING,GREYSTONES MEDICAL CENTRE,41116723,21700.34,S11 7BJ
Department of Health,NHS Sheffield CCG,31/05/2022,C&M-GMS LONG COVID ES,PRC DELEGATED CO-COMMISSIONING,GREYSTONES MEDICAL CENTRE,41116723,461.4,S11 7BJ
Department of Health,NHS Sheffield CCG,31/05/2022,C&M-GMS PCN DES Participation,PRC DELEGATED CO-COMMISSIONING,GREYSTONES MEDICAL CENTRE,41116723,403.66,S11 7BJ
Department of Health,NHS Sheffield CCG,31/05/2022,C&M-GMS Prem Notional Rent,PRC DELEGATED CO-COMMISSIONING,GREYSTONES MEDICAL CENTRE,41116723,2885.42,S11 7BJ
Department of Health,NHS Sheffield CCG,31/05/2022,C&M-GMS Prem Rates,PRC DELEGATED CO-COMMISSIONING,GREYSTONES MEDICAL CENTRE,41116723,426,S11 7BJ
Department of Health,NHS Sheffield CCG,31/05/2022,C&M-GMS QOF Aspiration,PRC DELEGATED CO-COMMISSIONING,GREYSTONES MEDICAL CENTRE,41116723,2549.11,S11 7BJ
Department of Health,NHS Sheffield CCG,31/05/2022,C&M-GMS Global Sum,PRC DELEGATED CO-COMMISSIONING,STANNINGTON MEDICAL CENTRE,41116728,27418.67,S6 6BX
Department of Health,NHS Sheffield CCG,31/05/2022,C&M-GMS Prem Notional Rent,PRC DELEGATED CO-COMMISSIONING,STANNINGTON MEDICAL CENTRE,41116728,2625,S6 6BX
Department of Health,NHS Sheffield CCG,31/05/2022,C&M-GMS QOF Aspiration,PRC DELEGATED CO-COMMISSIONING,STANNINGTON MEDICAL CENTRE,41116728,2954.53,S6 6BX
Department of Health,NHS Sheffield CCG,31/05/2022,Cont Care- Prior Year Payments,CHC ADULT FULLY FUNDED,SEASHELL TRUST,41117084,128572.26,SK8 6RQ
Department of Health,NHS Sheffield CCG,31/05/2022,Participation Fees,BEREAVEMENT SERVICE,SHEFFIELD LOCAL OPTICAL COMMITTEE,41117134,83000,S3 8BU
Department of Health,NHS Sheffield CCG,31/05/2022,C&M-OES Childrens Schemes,LOCAL ENHANCED SERVICES,PRIMARY EYECARE SERVICES LTD,41117197,1275,M4 6LN
Department of Health,NHS Sheffield CCG,31/05/2022,C&M-OES Glaucoma,LOCAL ENHANCED SERVICES,PRIMARY EYECARE SERVICES LTD,41117197,1070,M4 6LN
Department of Health,NHS Sheffield CCG,31/05/2022,C&M-OES Intra-ocular Ocular Hypertn,LOCAL ENHANCED SERVICES,PRIMARY EYECARE SERVICES LTD,41117197,120,M4 6LN
Department of Health,NHS Sheffield CCG,31/05/2022,C&M-OES PEARS,LOCAL ENHANCED SERVICES,PRIMARY EYECARE SERVICES LTD,41117197,26886.5,M4 6LN
Department of Health,NHS Sheffield CCG,31/05/2022,Clinical&Medical-Serv Recd-F Trsts,BEREAVEMENT SERVICE,DONCASTER AND BASSETLAW HOSPITALS NHS FOUNDATION TRUST,41117303,118000,WF3 1WE
Department of Health,NHS Sheffield CCG,31/05/2022,Clinical&Medical-Serv Recd-F Trsts,BEREAVEMENT SERVICE,DONCASTER AND BASSETLAW HOSPITALS NHS FOUNDATION TRUST,41117308,104732,WF3 1WE
Department of Health,NHS Sheffield CCG,31/05/2022,Clinical&Medical-Serv Recd-F Trsts,BEREAVEMENT SERVICE,DONCASTER AND BASSETLAW HOSPITALS NHS FOUNDATION TRUST,41117313,51125,WF3 1WE
Department of Health,NHS Sheffield CCG,31/05/2022,Clinical&Medical-Independent Sector,ACUTE COMMISSIONING,SPAMEDICA LTD,41117317,112176.09,BL1 1HU
Department of Health,NHS Sheffield CCG,31/05/2022,C&M-GMS DES Extended Hours Access,PRC DELEGATED CO-COMMISSIONING,ECCLESFIELD GROUP PRACTICE,41131990,5091.12,S35 9XQ
Department of Health,NHS Sheffield CCG,31/05/2022,C&M-GMS Global Sum,PRC DELEGATED CO-COMMISSIONING,ECCLESFIELD GROUP PRACTICE,41131990,76551.11,S35 9XQ
Department of Health,NHS Sheffield CCG,31/05/2022,C&M-GMS LONG COVID ES,PRC DELEGATED CO-COMMISSIONING,ECCLESFIELD GROUP PRACTICE,41131990,1067.89,S35 9XQ
Department of Health,NHS Sheffield CCG,31/05/2022,C&M-GMS PCN DES Clinical Director,PRC DELEGATED CO-COMMISSIONING,ECCLESFIELD GROUP PRACTICE,41131990,2602.13,S35 9XQ
Department of Health,NHS Sheffield CCG,31/05/2022,C&M-GMS PCN DES PCN support,PRC DELEGATED CO-COMMISSIONING,ECCLESFIELD GROUP PRACTICE,41131990,5303.25,S35 9XQ
Department of Health,NHS Sheffield CCG,31/05/2022,C&M-GMS PCN DES Participation,PRC DELEGATED CO-COMMISSIONING,ECCLESFIELD GROUP PRACTICE,41131990,1409.11,S35 9XQ
Department of Health,NHS Sheffield CCG,31/05/2022,C&M-GMS PCO Other,PRC DELEGATED CO-COMMISSIONING,ECCLESFIELD GROUP PRACTICE,41131990,1080.4,S35 9XQ
Department of Health,NHS Sheffield CCG,31/05/2022,C&M-GMS Prem Notional Rent,PRC DELEGATED CO-COMMISSIONING,ECCLESFIELD GROUP PRACTICE,41131990,7041.67,S35 9XQ
Department of Health,NHS Sheffield CCG,31/05/2022,C&M-GMS Prem Rates,PRC DELEGATED CO-COMMISSIONING,ECCLESFIELD GROUP PRACTICE,41131990,414,S35 9XQ
Department of Health,NHS Sheffield CCG,31/05/2022,C&M-GMS Prem Water Rates,PRC DELEGATED CO-COMMISSIONING,ECCLESFIELD GROUP PRACTICE,41131990,452.63,S35 9XQ
Department of Health,NHS Sheffield CCG,31/05/2022,C&M-GMS QOF Aspiration,PRC DELEGATED CO-COMMISSIONING,ECCLESFIELD GROUP PRACTICE,41131990,10073.55,S35 9XQ
Department of Health,NHS Sheffield CCG,31/05/2022,C&M-GMS WEIGHT MANAGEMENT SERVICE,PRC DELEGATED CO-COMMISSIONING,ECCLESFIELD GROUP PRACTICE,41131990,80.5,S35 9XQ
Department of Health,NHS Sheffield CCG,31/05/2022,C&M-PCN-GMS DES Leadership Payment,PRC DELEGATED CO-COMMISSIONING,ECCLESFIELD GROUP PRACTICE,41131990,2574.59,S35 9XQ
Department of Health,NHS Sheffield CCG,31/05/2022,C&M-GMS DES Learn Dsblty Hlth Chk,PRC DELEGATED CO-COMMISSIONING,SHIREGREEN MEDICAL CENTRE,41131991,420,S5 0RG
Department of Health,NHS Sheffield CCG,31/05/2022,C&M-GMS Global Sum,PRC DELEGATED CO-COMMISSIONING,SHIREGREEN MEDICAL CENTRE,41131991,62609.05,S5 0RG
Department of Health,NHS Sheffield CCG,31/05/2022,C&M-GMS LONG COVID ES,PRC DELEGATED CO-COMMISSIONING,SHIREGREEN MEDICAL CENTRE,41131991,955.67,S5 0RG
Department of Health,NHS Sheffield CCG,31/05/2022,C&M-GMS PCN DES Participation,PRC DELEGATED CO-COMMISSIONING,SHIREGREEN MEDICAL CENTRE,41131991,1136.16,S5 0RG
Department of Health,NHS Sheffield CCG,31/05/2022,C&M-GMS Prem Actual Rent,PRC DELEGATED CO-COMMISSIONING,SHIREGREEN MEDICAL CENTRE,41131991,1792.33,S5 0RG
Department of Health,NHS Sheffield CCG,31/05/2022,C&M-GMS Prem Notional Rent,PRC DELEGATED CO-COMMISSIONING,SHIREGREEN MEDICAL CENTRE,41131991,5375,S5 0RG
Department of Health,NHS Sheffield CCG,31/05/2022,C&M-GMS QOF Aspiration,PRC DELEGATED CO-COMMISSIONING,SHIREGREEN MEDICAL CENTRE,41131991,6571.05,S5 0RG
Department of Health,NHS Sheffield CCG,31/05/2022,C&M-GMS WAF Security Funding,PRC DELEGATED CO-COMMISSIONING,SHIREGREEN MEDICAL CENTRE,41131991,3960,S5 0RG
Department of Health,NHS Sheffield CCG,31/05/2022,C&M-GMS WEIGHT MANAGEMENT SERVICE,PRC DELEGATED CO-COMMISSIONING,SHIREGREEN MEDICAL CENTRE,41131991,80.5,S5 0RG
Department of Health,NHS Sheffield CCG,31/05/2022,C&M-GMS DES Learn Dsblty Hlth Chk,PRC DELEGATED CO-COMMISSIONING,MILL ROAD SURGERY SHEFFIELD,41131992,980,S35 9XQ
Department of Health,NHS Sheffield CCG,31/05/2022,C&M-GMS Global Sum,PRC DELEGATED CO-COMMISSIONING,MILL ROAD SURGERY SHEFFIELD,41131992,47049.63,S35 9XQ
Department of Health,NHS Sheffield CCG,31/05/2022,C&M-GMS LONG COVID ES,PRC DELEGATED CO-COMMISSIONING,MILL ROAD SURGERY SHEFFIELD,41131992,652.49,S35 9XQ
Department of Health,NHS Sheffield CCG,31/05/2022,C&M-GMS PCN DES Participation,PRC DELEGATED CO-COMMISSIONING,MILL ROAD SURGERY SHEFFIELD,41131992,860.88,S35 9XQ
Department of Health,NHS Sheffield CCG,31/05/2022,C&M-GMS PCO Locum Sickness,PRC DELEGATED CO-COMMISSIONING,MILL ROAD SURGERY SHEFFIELD,41131992,3287.53,S35 9XQ
Department of Health,NHS Sheffield CCG,31/05/2022,C&M-GMS Prem Notional Rent,PRC DELEGATED CO-COMMISSIONING,MILL ROAD SURGERY SHEFFIELD,41131992,4593.33,S35 9XQ
Department of Health,NHS Sheffield CCG,31/05/2022,C&M-GMS Prem Rates,PRC DELEGATED CO-COMMISSIONING,MILL ROAD SURGERY SHEFFIELD,41131992,674,S35 9XQ
Department of Health,NHS Sheffield CCG,31/05/2022,C&M-GMS QOF Aspiration,PRC DELEGATED CO-COMMISSIONING,MILL ROAD SURGERY SHEFFIELD,41131992,5561.38,S35 9XQ
Department of Health,NHS Sheffield CCG,31/05/2022,C&M-GMS WEIGHT MANAGEMENT SERVICE,PRC DELEGATED CO-COMMISSIONING,MILL ROAD SURGERY SHEFFIELD,41131992,57.5,S35 9XQ
Department of Health,NHS Sheffield CCG,31/05/2022,Clinical&Medical-Serv Recd-F Trsts,BEREAVEMENT SERVICE,SHEFFIELD TEACHING HOSPITALS NHS FOUNDATION TRUST,41157556,405000,S5 7AU
Department of Health,NHS Sheffield CCG,31/05/2022,Clinical&Medical-Independent Sector,Mental Health Services - S117 Mental Health,MOORVILLE RESIDENTIAL,41157559,38010.6,S10 5FA
Department of Health,NHS Sheffield CCG,31/05/2022,Cont Care-Learning Disab(<65),CHC ADULT FULLY FUNDED,MOORVILLE RESIDENTIAL,41157559,9044.4,S10 5FA
Department of Health,NHS Sheffield CCG,31/05/2022,Cont Care-Learning Disab(<65),CHC ADULT JOINT FUNDED,MOORVILLE RESIDENTIAL,41157559,4272.9,S10 5FA
Department of Health,NHS Sheffield CCG,31/05/2022,Cont Care-Mental Health (<65),CHC ADULT JOINT FUNDED,MOORVILLE RESIDENTIAL,41157559,499.2,S10 5FA
Department of Health,NHS Sheffield CCG,31/05/2022,Clinical&Medical-Serv Recd-F Trsts,BEREAVEMENT SERVICE,SHEFFIELD TEACHING HOSPITALS NHS FOUNDATION TRUST,41157564,-405000,S5 7AU
Department of Health,NHS Sheffield CCG,31/05/2022,Hcare Srv Rec Fdtn Trust-Non Contract,ACUTE COMMISSIONING,SHEFFIELD HEALTH & SOCIAL CARE NHS FOUNDATION TRUST,41166501,31664,S10 3TH
Department of Health,NHS Sheffield CCG,31/05/2022,Other professional fees,BEREAVEMENT SERVICE,SME HCI LTD,41166567,181664.4,GU9 7UD
Department of Health,NHS Sheffield CCG,31/05/2022,Voids and Subsidies,PRC DELEGATED CO-COMMISSIONING,COMMUNITY HEALTH PARTNERSHIPS LTD,41166653,41457.27,M1 3LD
Department of Health,NHS Sheffield CCG,31/05/2022,Voids and Subsidies,RECHARGES NHS PROPERTY SERVICES LTD,COMMUNITY HEALTH PARTNERSHIPS LTD,41166653,122919.93,M1 3LD
Department of Health,NHS Sheffield CCG,31/05/2022,Voids and Subsidies,PRC DELEGATED CO-COMMISSIONING,COMMUNITY HEALTH PARTNERSHIPS LTD,41166687,41457.27,M1 3LD
Department of Health,NHS Sheffield CCG,31/05/2022,Voids and Subsidies,RECHARGES NHS PROPERTY SERVICES LTD,COMMUNITY HEALTH PARTNERSHIPS LTD,41166687,122919.93,M1 3LD
Department of Health,NHS Sheffield CCG,31/05/2022,Clinical&Medical-Serv Recd-F Trsts,BEREAVEMENT SERVICE,BARNSLEY HOSPITAL NHS FOUNDATION TRUST,41166751,67000,S75 2EP
Department of Health,NHS Sheffield CCG,31/05/2022,Other professional fees,BEREAVEMENT SERVICE,SME HCI LTD,41166799,-36000,GU9 7UD
Department of Health,NHS Sheffield CCG,31/05/2022,Hcare Srv Rec Fdtn Trust-Non Contract,ACUTE COMMISSIONING,SHEFFIELD HEALTH & SOCIAL CARE NHS FOUNDATION TRUST,41166819,-31664,S10 3TH
Department of Health,NHS Sheffield CCG,31/05/2022,Voids and Subsidies,PRC DELEGATED CO-COMMISSIONING,COMMUNITY HEALTH PARTNERSHIPS LTD,41166851,41457.27,M1 3LD
Department of Health,NHS Sheffield CCG,31/05/2022,Voids and Subsidies,RECHARGES NHS PROPERTY SERVICES LTD,COMMUNITY HEALTH PARTNERSHIPS LTD,41166851,122919.93,M1 3LD
Department of Health,NHS Sheffield CCG,31/05/2022,Advertising,BEREAVEMENT SERVICE,BYTEBACK CREATIVE LLP,41166905,34750,S64 9BN
Department of Health,NHS Sheffield CCG,31/05/2022,Participation Fees,BEREAVEMENT SERVICE,SOUTH YORKSHIRE MAYORAL COMBINED AUTHORITY,41176419,36340.48,S1 2BQ
